Cogmind - Beta 13 X1 @@@ ROGUE MODE // 2023.07.21 @ 22:57:52 Player: MTF Result: Escaped singularity! Performance ------------- Evolutions (9) 4500 Regions Visited (33) 6600 Robots Destroyed (588) 2940 Value Destroyed (32459) 32459 Prototype IDs (299) 5980 Alien Tech Used (11) 2200 Bonus (55120) 55120 TOTAL SCORE: 109799 Bonus ------- Triggered High Security 500 High Alert Combat Kills 5843 Follower Combat Kills 2511 Network Hubs Disabled 600 Met Data Miner 300 Met Zhirov 300 Met Warlord at Base 500 MAIN.C Attacked Warlord 500 Warlord Defense Kills 734 Built Enhanced Grunts 300 Met R17 at Cetus 500 Found Hidden Lab 3000 Used Core Reset Matrix 3000 Met Warlord at Research 2000 Destroyed MAIN.C Guards 500 Met MAIN.C 5000 Destroyed MAIN.C Shell 5000 Destroyed MAIN.C 10000 Met Architect 300 Destroyed A8 300 Destroyed A6 400 Destroyed A5 500 Destroyed A4 700 Destroyed Architect 15000 Win 3000 Friendly Fire -6168 Cogmind --------- Core Integrity 481/1600 Matter 9/300 Energy 1032/1066 System Corruption 0% Temperature Cool (18) Movement Treading (62) Location Near Former Tau Ceti IV Parts ------- > --- POWER (4) -------- Zero-point Reactor Multi-Quantum Reactor > --- PROPULSION (6) --- Treaded HC-Siege Exoskeleton > --- UTILITY (11) ----- Armored Scrap Engine High-capacity Storage Unit Experimental Targeting Computer Experimental Targeting Computer Experimental Targeting Computer Experimental Core Analyzer Heavy Regenerative Plating AEGIS Remote Shield > --- WEAPON (5) ------- Hpw. Ballistic Nova Construct/C > --- INVENTORY (20) --- Antimatter Reactor Antimatter Reactor Improved Quantum Reactor Experimental Cooling System Experimental Coolant Injector Experimental Energy Well (600) Experimental Energy Well (600) Experimental Energy Well (600) Experimental Matter Compressor (408) Advanced Kinecellerator Experimental Weapon Cycler Experimental Weapon Cycler Advanced Force Field AEGIS Remote Shield Long-range Tractor Beam Spacefold Activator Neutron Cannon Neutron Cannon Neutron Cannon Peak State ------------ > --- POWER ------------ Zero-point Reactor Zero-point Reactor Vortex Chain Reactor > --- PROPULSION ------- Biometal Heavy Treads Experimental Biometal Heavy Treads High-density Centrium Heavy Treads > --- UTILITY ---------- Experimental Cooling System Experimental Cooling System Experimental Coolant Injector Huge Storage Unit Experimental Core Analyzer Quantum Capacitor Heavy Regenerative Plating AEGIS Remote Shield Spacefold Activator > --- WEAPON ----------- Compact HERF Cannon Enhanced Nova Cannon Enhanced Nova Cannon Enhanced Nova Cannon Enhanced Nova Cannon > --- INVENTORY -------- Quantum Reactor Experimental Biometal Heavy Treads Scrap Engine Experimental Cooling System Coolant Network Advanced Coolant Injector Experimental Coolant Injector Experimental Energy Well Experimental Energy Well Experimental Energy Well Experimental Matter Compressor Advanced Transmission Jammer Experimental Cloaking Device Graphene Brace Advanced Force Field AEGIS Remote Shield Long-range Tractor Beam High-powered Transdimensional Reconstructor Integrity Redistributor Vortex Shotgun Compact HERF Cannon Warp Cannon [Rating: 254] Favorites ----------- Power Quantum Reactor Engine Cooled Deuterium Engine Power Core Light Fission Core Reactor Quantum Reactor Propulsion Light Treads Treads Light Treads Leg Aluminum Leg Wheel High-density Centrium Wheel Hover Unit Cooled Antigrav System Flight Unit Cooled Nuclear Pulse Thruster Utility Huge Storage Unit Device Experimental Cooling System Storage Huge Storage Unit Processor Experimental Core Analyzer Hackware Quantum Router Protection Heavy Regenerative Plating Artifact Spacefold Activator Weapon Enhanced Nova Cannon Energy Gun Quantum Rifle Energy Cannon Enhanced Nova Cannon Ballistic Gun Advanced KE Penetrator Ballistic Cannon Constructs Launcher Guided Micro-nuke Launcher Special Weapon Mining Laser Impact Weapon Power Maul Piercing Weapon Makeshift Spear Build | -11 -10 -10 -10 -9 -7 -7 -7 -7 -6 -6 -6 -6 -6 -6 -5 -5 -5 -5 -4 -4 -4 -4 -4 -3 -3 -3 -3 -2 -2 -2 -1 -1 -1 ------- Run | Jun Mat Min Sub Rec Fac Low Low Dat Pro Fac Ext Cet Arc Hub Fac Upp Upp Zhi Pro Fac Upp Upp War Pro Res Arm Lab Res Qua Sec Acc Com Ac0 Slots Evolved 18 | . . . . . 6 . . . . 2 . . . . 2 . . . . 2 . . . . 2 . . 2 . . 2 . . Power 3 | . . . . . . . . . . 1 . . . . . . . . . 1 . . . . . . . . . . 1 . . Propulsion 4 | . . . . . 2 . . . . . . . . . . . . . . . . . . . . . . 2 . . . . . Utility 8 | . . . . . 4 . . . . 1 . . . . 1 . . . . 1 . . . . . . . . . . 1 . . Weapon 3 | . . . . . . . . . . . . . . . 1 . . . . . . . . . 2 . . . . . . . . Parts Attached 733 | 1 10 13 21 6 25 9 24 1 7 28 21 24 12 17 53 12 8 11 47 52 23 14 23 12 31 40 8 34 24 28 15 63 16 Power 51 | . 3 2 1 . 3 . 1 . . 4 2 9 . . . . 2 1 3 1 2 3 1 . 2 2 1 1 . 1 2 4 . Engine 11 | . 3 1 1 . 3 . 1 . . . 2 . . . . . . . . . . . . . . . . . . . . . . Core 7 | . . 1 . . . . . . . 4 . . . . . . . . . . . 2 . . . . . . . . . . . Reactor 33 | . . . . . . . . . . . . 9 . . . . 2 1 3 1 2 1 1 . 2 2 1 1 . 1 2 4 . Propulsion 70 | . 4 3 6 . 4 . 6 1 . 7 1 3 . . 4 . . 2 8 4 2 2 2 1 . 2 2 2 . . . 4 . Treads 47 | . 4 3 6 . 4 . 3 1 . 4 1 3 . . 3 . . 1 3 . 1 . 2 . . 1 1 2 . . . 4 . Leg 1 | . . . . . . . . . . . . . . . . . . . 1 . . . . . . . . . . . . . . Wheel 20 | . . . . . . . 3 . . 3 . . . . . . . . 4 4 1 2 . 1 . 1 1 . . . . . . Hover 1 | . . . . . . . . . . . . . . . 1 . . . . . . . . . . . . . . . . . . Flight 1 | . . . . . . . . . . . . . . . . . . 1 . . . . . . . . . . . . . . . Utility 368 | 1 3 . 4 6 13 1 5 . 4 6 9 6 8 11 23 6 4 4 21 30 14 9 10 11 10 22 2 25 14 21 9 41 15 Device 273 | 1 1 . . 3 7 1 3 . 3 4 7 4 6 9 18 4 3 2 18 24 12 5 8 10 9 20 1 19 12 13 7 29 10 Storage 18 | . 1 . 2 . . . . . . . 1 . . 1 . . . . . 1 . . . . . 1 . . 2 4 . 5 . Processor 22 | . . . . . 1 . 1 . 1 1 . . . . 1 2 1 . . . . 1 1 . 1 . . 1 . 2 1 3 4 Hackware 3 | . . . . . . . . . . . . . . . . . . . . 2 . . . . . . . . . . 1 . . Protection 50 | . 1 . 2 3 5 . 1 . . 1 1 2 2 1 4 . . 2 3 3 2 3 1 1 . 1 1 5 . 2 . 2 1 Artifact 2 | . . . . . . . . . . . . . . . . . . . . . . . . . . . . . . . . 2 . Weapon 244 | . . 8 10 . 5 8 12 . 3 11 9 6 4 6 26 6 2 4 15 17 5 . 10 . 19 14 3 6 10 6 4 14 1 Energy Gun 39 | . . 1 4 . . . . . . . . . . . . . . . . . 3 . 9 . 10 1 2 3 2 1 2 1 . Energy Cannon 115 | . . . 5 . 4 2 1 . 1 8 6 4 3 5 23 1 . . . 7 . . . . 7 5 1 3 8 5 2 13 1 Ballistic Gun 26 | . . 4 1 . . 1 . . . . . . 1 1 1 3 2 3 8 1 . . . . . . . . . . . . . Ballistic Cannon 34 | . . . . . . 2 6 . 1 . . . . . . 2 . . 4 7 2 . . . 2 8 . . . . . . . Launcher 17 | . . . . . 1 3 2 . . 3 3 . . . 2 . . . 2 1 . . . . . . . . . . . . . Special Weapon 4 | . . 3 . . . . . . . . . 1 . . . . . . . . . . . . . . . . . . . . . Impact Weapon 6 | . . . . . . . . . 1 . . 1 . . . . . 1 1 1 . . 1 . . . . . . . . . . Slashing Weapon . | . . . . . . . . . . . . . . . . . . . . . . . . . . . . . . . . . . Piercing Weapon 3 | . . . . . . . 3 . . . . . . . . . . . . . . . . . . . . . . . . . . Special Melee Weapon . | . . . . . . . . . . . . . . . . . . . . . . . . . . . . . . . . . . Unidentified Prototypes 63 | . . . . . 3 . . . 1 . . 2 . 3 5 . . 4 7 4 . 1 6 . 2 1 5 4 2 5 1 7 . Corrupted Parts 21 | . . . . . . . . . . . . 8 . . 1 . 2 . 1 . . . 1 . . . . . . 2 . 6 . System Corruption 110 | . . . . . . . . . . . . 54 . . 3 . 11 . 8 . . . 3 . . . . . . 7 . 24 . Parts Lost 59 | . 2 3 . . . . 5 . . 4 2 . . . 15 1 . . 3 11 5 1 . . . . . 2 . . . 3 2 Power 8 | . 1 . . . . . 1 . . . . . . . 3 . . . . 2 1 . . . . . . . . . . . . Propulsion 11 | . . 1 . . . . 3 . . 2 . . . . 2 . . . . . 1 1 . . . . . . . . . 1 . Utility 24 | . 1 . . . . . 1 . . 2 1 . . . 3 1 . . 1 7 1 . . . . . . 2 . . . 2 2 Weapon 16 | . . 2 . . . . . . . . 1 . . . 7 . . . 2 2 2 . . . . . . . . . . . . Highest Loss Streak 6 | . 2 1 . . . . 4 . . 2 2 . . . 3 1 . . 3 6 1 1 . . . . . 1 . . . 2 1 To Critical Strikes 1 | . . . . . . . . . . . . . . . 1 . . . . . . . . . . . . . . . . . . Average Slot Usage (%) 79 | . 99 100 87 100 97 99 99 92 94 99 99 87 85 88 85 87 88 74 90 81 87 94 92 90 80 78 66 66 75 81 64 54 52 Engine 3 | . 14 . 14 14 7 7 7 7 7 6 8 1 . . . . . . . . . . . . . . . . . . . . . Reactor 5 | . . . . . . . . . . . . 16 27 27 20 11 11 11 10 11 9 8 8 5 6 9 5 8 8 8 11 5 7 Treads 13 | . 27 28 28 28 30 30 26 15 23 15 26 13 11 11 10 11 11 11 7 4 4 4 1 10 9 4 . 10 12 12 11 2 3 Wheel 2 | . . . . . . . 2 14 7 10 . . . . . . . . 6 10 11 11 18 10 9 9 12 2 . . . . . Device 17 | . 2 . . . 20 22 26 23 15 20 20 18 18 22 29 11 12 15 11 13 25 28 27 25 21 21 19 19 19 24 22 19 13 Storage 5 | . 14 14 2 14 7 7 7 7 7 6 6 5 5 5 5 5 5 5 5 5 5 5 5 5 4 4 4 4 4 6 3 3 3 Processor 5 | . . . . . . 7 3 7 14 13 13 10 5 4 . 16 17 17 17 11 5 5 6 10 9 9 9 7 4 4 3 3 12 Protection 7 | . 11 14 13 13 15 7 7 7 7 6 6 7 6 5 5 11 9 6 10 5 9 8 5 5 4 4 6 8 8 4 3 3 3 Energy Gun 1 | . . 8 4 . . . . . . . . . . . . . . . . . 5 15 10 15 5 1 2 3 . . 2 . . Energy Cannon 8 | . . . 23 28 14 2 . . 1 12 12 10 6 11 12 . . . . 1 4 . . . 4 6 4 . 16 19 . 8 3 Ballistic Gun 2 | . 28 16 . . . 6 3 . . . . . 3 . . 12 7 1 9 . . . . . . . . . . . . . . Ballistic Cannon 2 | . . . . . . 5 7 . 1 . . . . . . 3 8 . 7 10 5 . . . 1 6 . . . . . 1 2 Naked Turns . | . . . . . . . . . . . . . . . . . . . . . . . . . . . . . . . . . . Heaviest Build 254 | 13 30 30 102 102 123 120 120 107 115 136 132 216 216 213 228 170 170 152 156 174 155 172 182 178 222 239 239 207 235 230 223 254 224 Greatest Support 250 | 20 40 40 40 40 80 80 83 32 12 80 90 160 160 160 160 160 160 160 160 80 80 76 76 36 36 40 60 230 230 230 230 250 237 Greatest Overweight (x) 11 | . . . 2 2 1 1 5 8 9 11 1 1 1 1 1 1 1 1 7 4 3 4 5 8 6 6 5 5 1 . . 2 . Average Overweight (x) 1 | . . . . 2 1 1 2 3 8 5 1 . 1 1 . . . . 1 3 2 3 2 4 5 5 2 1 . . . . . Largest Inventory Capacity 25 | 8 15 15 25 25 25 25 25 25 25 25 25 25 25 25 25 25 25 25 25 25 25 25 25 25 25 25 25 25 25 25 25 25 20 Average Capacity 23 | 8 12 15 8 25 25 25 25 25 25 25 25 25 25 25 25 25 25 25 25 25 25 25 25 25 25 25 25 25 25 25 25 24 20 Most Carried 25 | 6 15 15 23 25 25 25 25 24 25 25 25 25 25 25 25 25 25 25 25 25 25 25 25 25 25 25 25 25 25 25 25 25 20 Average Carried 22 | 6 12 14 7 24 23 24 24 23 24 24 24 24 24 24 22 24 24 24 24 22 20 24 24 24 24 24 22 24 24 24 24 22 19 Final Capacity 25 | 8 15 15 25 25 25 25 25 25 25 25 25 25 25 25 25 25 25 25 25 25 25 25 25 25 25 25 25 25 25 25 25 20 20 Final Carried 25 | 6 15 15 23 25 24 25 24 23 25 24 25 24 25 25 25 25 24 25 23 20 24 25 25 25 25 25 25 25 25 25 25 20 19 Scrap Engine Consumption 220 | . . . . . . . . . . . . . . . . . . . . . . . . . . . . . . . . 215 5 Constructs Created 3 | . . . . . . . . . . . . . . . . . . . . . . . . . . . . . . . . 3 . Constructs Modified 119 | . . . . . . . . . . . . . . . . . . . . . . . . . . . . . . . . 116 3 Class Distribution -------------------- 15% | Derelict-Mutant 13% | Generator-Construct 12% | Scavenger-Mutant 11% | Mutant 6% | Scavenger-Gunner 5% | Generator-Gunner 5% | Subdweller-Mutant 5% | Scavenger-Tank 4% | Infiltrator-Gunner 4% | Alien-Mutant 4% | Generator-Mutant Dominant Class ---------------- Mutant | -10/Materials Mutant | -10/Mines Subdweller-Mutant | -10/Subcaves Derelict-Mutant | -9/Recycling Derelict-Mutant | -7/Factory Mutant | -7/Lower Caves Derelict-Mutant | -7/Lower Caves Derelict-Mutant | -7/Data Miner Derelict-Mutant | -6/Proximity Caves Derelict-Mutant | -6/Factory Scavenger-Mutant | -6/Extension Commander-Mutant | -6/Cetus Scavenger-Mutant | -6/Archives Scavenger-Mutant | -6/Hub_04(d) Scavenger-Mutant | -5/Factory Scavenger-Tank | -5/Upper Caves Scavenger-Mutant | -5/Upper Caves Scavenger-Mutant | -5/Zhirov Scavenger-Gunner | -4/Proximity Caves Gunner | -4/Factory Scavenger-Gunner | -4/Upper Caves Scavenger-Tank | -4/Upper Caves Derelict-Mutant | -4/Warlord Scavenger-Gunner | -3/Proximity Caves Scavenger-Gunner | -3/Research Infiltrator-Gunner | -3/Armory Infiltrator-Mutant | -3/Lab Infiltrator-Gunner | -2/Research Alien-Tank | -2/Quarantine Alien-Mutant | -2/Section 7 Generator-Gunner | -1/Access Generator-Construct | -1/Command Generator-Construct | -1/Access_0 Resources | -11 -10 -10 -10 -9 -7 -7 -7 -7 -6 -6 -6 -6 -6 -6 -5 -5 -5 -5 -4 -4 -4 -4 -4 -3 -3 -3 -3 -2 -2 -2 -1 -1 -1 ----------- Run | Jun Mat Min Sub Rec Fac Low Low Dat Pro Fac Ext Cet Arc Hub Fac Upp Upp Zhi Pro Fac Upp Upp War Pro Res Arm Lab Res Qua Sec Acc Com Ac0 Matter Collected 15834 | 280 560 193 289 218 217 211 800 . 378 340 224 319 417 301 651 334 250 204 1342 2430 461 232 233 155 350 1043 . 259 196 280 100 1207 1360 Remotely 4059 | . . . . . . . . . . . . 40 . . 308 . . . 267 1979 . . . . 78 702 . 5 . . . 335 345 Salvage Created 35349 | 117 619 445 483 168 697 325 275 . 327 1660 1480 654 333 519 3313 241 184 340 1463 1880 522 622 337 989 851 1141 . 2098 1050 1997 1908 5156 3155 Parts 1525 | 9 39 23 36 14 36 11 9 . 17 74 55 23 24 21 154 17 7 1 37 52 14 24 8 35 33 56 . 73 72 78 82 206 185 Haulers Intercepted 15 | . 1 . . . 2 . . . . 2 . . . 4 1 . . . 1 2 . . . . . . . 1 . . 1 . . Recyclers Shooed 21 | . . . . . . . . . . 3 6 . . . 3 . . . . 4 . . . . 2 . . . . 1 . 2 . Parts Field Recycled . | . . . . . . . . . . . . . . . . . . . . . . . . . . . . . . . . . . Retrieved Matter . | . . . . . . . . . . . . . . . . . . . . . . . . . . . . . . . . . . Parts Self-Destructed 156 | . . . 18 . . 8 7 . 7 . . . . . . 16 . . 35 . 11 21 . 33 . . . . . . . . . Prevented 5 | . . . . . . . 1 . . . . . . . . 2 . . 1 . 1 . . . . . . . . . . . . Kills | -11 -10 -10 -10 -9 -7 -7 -7 -7 -6 -6 -6 -6 -6 -6 -5 -5 -5 -5 -4 -4 -4 -4 -4 -3 -3 -3 -3 -2 -2 -2 -1 -1 -1 ------- Run | Jun Mat Min Sub Rec Fac Low Low Dat Pro Fac Ext Cet Arc Hub Fac Upp Upp Zhi Pro Fac Upp Upp War Pro Res Arm Lab Res Qua Sec Acc Com Ac0 Combat Hostiles Destroyed 456 | . 13 12 13 3 9 8 8 . . 25 13 7 . 2 58 7 . . 22 29 9 7 4 13 9 23 . 25 17 20 21 46 33 Guns 73 | . 13 12 . . . . 1 . . . . . . . . 6 . . 14 . 1 7 4 13 . . . . . . . 2 . Cannons 207 | . . . 13 3 7 3 3 . . 18 7 . . 1 33 1 . . 4 24 7 . . . . 19 . . 15 8 . 8 33 AOE 129 | . . . . . . 5 4 . . 6 4 1 . 1 12 . . . 4 5 . . . . 8 3 . 24 . 2 19 31 . Classes Destroyed 33 | 2 4 2 1 1 4 2 3 . 1 3 . . . . 1 . . . 2 . . 1 2 . . 1 . . 1 1 . 1 . Worker 19 | . . . . . 1 . . . . 1 . . . 1 7 . . . . 2 . . . . 2 . . . . 1 2 2 . Builder 15 | . . 1 . . 2 . . . . 1 . . . 1 5 . . . . 2 . . . . . . . 1 . 2 . . . Tunneler 6 | 2 . . . . . . . . . 1 . . . . 3 . . . . . . . . . . . . . . . . . . Hauler 15 | . 1 . . . 2 . . . . 2 . . . 4 1 . . . 1 2 . . . . . . . 1 . . 1 . . Recycler 26 | 1 1 . . . 1 . . . . 2 6 . . . 1 . . . . 7 . . . . 2 . . . . 1 3 1 . Carrier 1 | . . . . . . . . . . . . . . . . . . . . . . . . . . . . . . . . 1 . Minesweeper 1 | . . . . . . . . . . . . . . . . . . . 1 . . . . . . . . . . . . . . Mechanic 8 | . . . . . . . . . . 1 . . . . 2 . . . 2 1 . . 1 . . . . . . . . 1 . Operator 18 | . . . . . 1 . . . . 1 . . 9 1 . . . . . . . . . . . 1 . . . 1 1 3 . Drone 4 | . . . . . . . . . . . . . . . . . . . 2 . . . . 2 . . . . . . . . . Watcher 19 | . 2 . . . 1 . . . . 3 . . . . 1 . . . . 1 . . . . . . . 2 1 3 3 2 . Swarmer 86 | . 3 3 3 . 3 . 3 . . 11 4 . . . 9 5 . . 5 4 . . . . 5 . . 4 5 . 11 8 . Cutter 2 | . . . . . . . . . . . . . . . . . . . . . . . . . . . . . . 2 . . . Grunt 122 | . 10 8 . . 2 6 2 . . 5 6 1 . 2 11 1 . . 4 12 6 6 . 8 . 6 . 8 . 8 . 10 . Brawler 10 | . . . . . . . 1 . . . . . . . 3 . . . 3 3 . . . . . . . . . . . . . Duelist 9 | . . . . . . 1 . . . . . . . . 2 . . . 1 1 . . 1 1 . 1 . . . . . 1 . Protector 6 | . . . . . . . . . . . . . . . 3 . . . 1 1 . . . . . 1 . . . . . . . Researcher 1 | . . . . . . . . . . . . . . . . . . . . . . 1 . . . . . . . . . . . Sentry 32 | . . . . 3 2 . 1 . . 2 2 . . . 5 . . . 1 . 2 1 . . 2 2 . 1 . 3 1 4 . Demolisher 4 | . . . . . . . . . . . . . . . . . . . . . . . . . . 1 . 3 . . . . . Specialist 9 | . . . . . . . . . . 2 . . . . . . . . 2 . 1 . . . . 4 . . . . . . . Hunter 45 | . . . . . 1 . . . . 3 . . . . 17 1 . . 3 4 . . . . . . . 6 2 . 2 6 . Programmer 56 | . . . . . 1 . . . . 1 . . . . 8 . . . . 4 . . 1 2 2 8 . . 9 5 6 9 . Heavy 3 | . . . . . . . . . . 1 . . . . . . . . . . . . . . . . . . . . 1 1 . Behemoth 3 | . . . . . . . 1 . . . 1 . . . . . . . . . . . . . . . . . . . . 1 . Cetus Guard 6 | . . . . . . . . . . . . 6 . . . . . . . . . . . . . . . . . . . . . S7 Guard 2 | . . . . . . . . . . . . . . . . . . . . . . . . . . . . . . 2 . . . M Guard 2 | . . . . . . . . . . . . . . . . . . . . . . . . . . . . . . . . 2 . Enhanced Grunt 21 | . . . . . . . . . 1 . . . . . . . . . . . . . . . . . . . . . . . 20 Enhanced Hunter 8 | . . . . . . . . . . . . . . . . . . . . . . . . . . . . . . . . . 8 Combat Programmer 2 | . . . . . . . . . . . . . . . . . . . . . . . . . . . . . . . . 2 . Striker 4 | . . . . . . . . . . . . . . . . . . . . . . . 1 . . . . 3 . . . . . Executioner 1 | . . . . . . . . . . . . . . . . . . . . . . . 1 . . . . . . . . . . Alpha 7 1 | . . . . . . . . . . . . . . . . . . . . . . . . . . . . . 1 . . . . Subdweller 10 | . . . 10 . . . . . . . . . . . . . . . . . . . . . . . . . . . . . . Packrat 1 | . . . . . . . 1 . . . . . . . . . . . . . . . . . . . . . . . . . . Samaritan 9 | . . . . . . . . . 4 . . . . . . . 4 . . . . 1 . . . . . . . . . . . Tinkerer 3 | . . . . . . . 2 . 1 . . . . . . . . . . . . . . . . . . . . . . . . Assembled 1 | . . 1 . . . . . . . . . . . . . . . . . . . . . . . . . . . . . . . Thug 1 | . . . . . . . . . . . . 1 . . . . . . . . . . . . . . . . . . . . . Savage 1 | . . . . . . . . . . . 1 . . . . . . . . . . . . . . . . . . . . . . Mutant 1 | . . . . . . 1 . . . . . . . . . . . . . . . . . . . . . . . . . . . Best Kill Streak 22 | 2 4 3 3 1 4 4 3 . . 6 5 4 5 5 22 5 . . 10 17 4 2 2 5 5 6 . 6 3 9 10 8 3 Combat Bots Only 16 | . 4 3 3 1 2 4 3 . . 5 4 4 . 1 16 5 . . 9 12 4 2 2 5 5 6 . 6 3 6 9 8 3 Max Kills in Single Turn 5 | 1 1 1 1 1 1 2 2 . 1 3 5 2 1 3 4 2 1 . 2 3 2 1 1 1 5 3 . 4 1 2 5 4 1 Gunslinging 1 | . . . . . . . . . . . . . . . . 1 . . 1 . . . . . . . . . . . . . . Exploded 5 | . . . . . . 2 2 . . 3 4 1 . 1 4 . . . 2 2 . . . . 5 3 . 4 . 2 5 4 . Melee . | . . . . . . . . . . . . . . . . . . . . . . . . . . . . . . . . . . Uniques/NPCs Destroyed 8 | . . . . . . . . . . . . 1 . . . . . . . . . . . . . . . . . . . 2 5 A7 (-6/Cetus) MAIN.C Shell (-1/Command) MAIN.C (-1/Command) A8 (-1/Access_0) A6 (-1/Access_0) A5 (-1/Access_0) A4 (-1/Access_0) Architect (-1/Access_0) Combat | -11 -10 -10 -10 -9 -7 -7 -7 -7 -6 -6 -6 -6 -6 -6 -5 -5 -5 -5 -4 -4 -4 -4 -4 -3 -3 -3 -3 -2 -2 -2 -1 -1 -1 -------- Run | Jun Mat Min Sub Rec Fac Low Low Dat Pro Fac Ext Cet Arc Hub Fac Upp Upp Zhi Pro Fac Upp Upp War Pro Res Arm Lab Res Qua Sec Acc Com Ac0 Damage Taken 35317 | . 387 462 429 58 535 452 1080 . . 1536 903 216 . 641 4160 398 . . 2857 3520 1015 367 112 1036 202 1084 . 467 1093 1155 604 5591 4957 Core 2449 | . 46 26 65 12 46 40 75 . . 154 33 27 . 56 225 . . . 237 252 79 8 . 36 39 106 . 58 43 67 . 310 409 Absorbed by Shields 20395 | . . . . . 224 145 385 . . 517 324 74 . 34 1454 71 . . 1042 703 89 377 58 1079 207 1153 . 487 1126 1202 629 4202 4813 Reduced by Siege Mode 1302 | . . . . . . . . . . . . . . . 205 28 . . 150 90 16 26 . . . 77 . 19 11 37 . 512 131 Redirected to Shielding 417 | . 8 4 . 2 9 . . . . . . . . . . . . . 163 . . . . . . . . . . . . 107 124 Ignored by Resistances 45 | . . . . . 45 . . . . . . . . . . . . . . . . . . . . . . . . . . . . Regen/Repaired (Parts) 7463 | . 39 . . . . . . . . . . . . . . . . . . 995 . . 187 . . . . 47 107 1872 165 1113 2938 Core Remaining (%) 67 | 100 . . . 40 . . . . 77 . . . . 68 . . . . 53 . . . . 67 . . 100 . . 70 . . 30 Volleys Fired 1632 | 13 48 53 79 4 48 26 54 . . 93 48 46 69 23 120 9 12 . 51 90 20 29 8 39 25 57 8 35 53 78 27 169 198 Largest 5 | 2 2 2 2 2 2 2 2 . . 2 2 2 2 2 3 3 3 . 3 3 3 3 3 3 3 5 1 1 5 3 1 4 1 Hottest 548 | 40 40 100 160 160 160 160 96 . . 170 170 170 144 170 273 167 167 . 210 330 330 282 282 282 300 471 113 300 548 360 300 480 135 Shots Fired 2790 | 26 96 89 102 8 79 42 86 . 1 161 92 86 67 35 243 32 24 . 139 194 54 71 23 113 31 115 9 35 98 137 27 277 198 Gun 837 | 26 96 73 23 . . 6 24 . . . . . 61 . . 28 18 . 113 2 20 71 23 113 10 6 . 27 2 1 25 69 . Cannon 1897 | . . . 79 8 79 31 57 . 1 155 88 86 6 35 233 4 6 . 20 188 34 . . . 21 109 9 8 96 136 2 208 198 Launcher 40 | . . . . . . 5 5 . . 6 4 . . . 10 . . . 6 4 . . . . . . . . . . . . . Special 16 | . . 16 . . . . . . . . . . . . . . . . . . . . . . . . . . . . . . . Kinetic 831 | 26 96 48 . . . 14 81 . 1 . . . 61 . . 32 24 . 133 162 8 . . . 5 52 . . . . . 10 78 Thermal 1510 | . . 41 102 8 79 23 . . . 151 88 44 . 30 135 . . . . 28 46 71 23 113 19 60 9 35 78 67 27 220 13 Explosive 40 | . . . . . . 5 5 . . 6 4 . . . 10 . . . 6 4 . . . . . . . . . . . . . Electromagnetic 276 | . . . . . . . . . . 4 . 42 6 5 98 . . . . . . . . . 7 3 . . 20 70 . 21 . Entropic 133 | . . . . . . . . . . . . . . . . . . . . . . . . . . . . . . . . 26 107 Robot Hit Streak 36 | 4 10 14 9 7 18 5 10 . . 19 21 19 12 10 31 9 6 . 21 36 26 17 16 19 11 14 . 15 8 12 16 26 21 Robot Miss Streak 10 | 4 7 3 2 . 4 2 2 . . 3 2 2 4 1 2 1 1 . 4 2 1 2 2 4 5 3 . 9 7 10 8 6 6 Penetration Max 1 | . . . . . . . . . . . . . 1 . . . 1 . 1 . . . . . . . . . . . . . . Secondary Targets 16 | . 1 2 . . . . . . . . . . . . . 2 . . 6 . . . 1 4 . . . . . . . . . Max Gunslinging Chain 1 | . 1 1 . . . . . . . . . . . . . 1 . . 1 . . . 1 1 . . . . . . . . . Capacitor 112 | . . . . . . . . . . . . . . . . . . . . . . . . . . . . . . . 1 111 . Shots Hit Robots 1795 | 11 59 53 31 6 40 24 62 . 7 109 70 69 41 14 179 16 14 5 104 135 41 49 16 74 15 55 . 26 37 76 23 199 135 Core Hits 1287 | 4 31 26 14 3 17 17 23 . 3 56 40 19 24 19 145 8 7 . 58 87 16 22 8 35 31 35 . 103 26 36 80 245 49 Critical Kills 29 | . . . . . 3 . . . . . 1 . 1 . 3 4 2 . 12 . . . . . . 1 . . 1 . . 1 . Critical Parts Destroyed 37 | . 1 . . . . . 1 . . . . . 1 . . 6 6 3 15 1 . . . . . . . . . . . 2 1 Critical Strikes 125 | . 1 2 . . 3 2 7 . 2 . 1 1 2 . 7 10 8 3 33 27 2 . . . . 5 . . 1 2 . 3 3 Burn 2 | . . 2 . . . . . . . . . . . . . . . . . . . . . . . . . . . . . . . Meltdown 10 | . . . . . 3 . . . . . 1 . . . 3 . . . . . . . . . . 1 . . 1 . . 1 . Destroy 54 | . 1 . . . . . 1 . . . . . 2 . . 10 8 . 29 1 . . . . . . . . . . . . 2 Blast 44 | . . . . . . 2 5 . . . . . . . . . . . 4 26 2 . . . . 4 . . . . . . 1 Corrupt 7 | . . . . . . . . . . . . 1 . . 4 . . . . . . . . . . . . . . 2 . . . Smash 3 | . . . . . . . . . . . . . . . . . . 3 . . . . . . . . . . . . . . . Impale 3 | . . . . . . . 1 . 2 . . . . . . . . . . . . . . . . . . . . . . . . Detonate 2 | . . . . . . . . . . . . . . . . . . . . . . . . . . . . . . . . 2 . Melee Attacks 58 | . . . . . . . 13 . 13 . . . . . . . . 5 2 1 . . 24 . . . . . . . . . . Impact 33 | . . . . . . . . . 1 . . . . . . . . 5 2 1 . . 24 . . . . . . . . . . Slashing . | . . . . . . . . . . . . . . . . . . . . . . . . . . . . . . . . . . Piercing 25 | . . . . . . . 13 . 12 . . . . . . . . . . . . . . . . . . . . . . . . Sneak Attacks 14 | . . . . . . . 7 . 7 . . . . . . . . . . . . . . . . . . . . . . . . Combat Hostiles . | . . . . . . . . . . . . . . . . . . . . . . . . . . . . . . . . . . Follow-up Attacks . | . . . . . . . . . . . . . . . . . . . . . . . . . . . . . . . . . . Damage Inflicted 123900 | 127 773 681 858 164 1241 962 2391 . 417 4252 2775 2042 1043 1396 10670 451 409 485 4201 8445 1598 1360 505 2219 1488 3724 . 4430 2062 3617 3325 15621 40168 Guns 13224 | 127 766 666 20 . . 106 420 . . . . . 975 . . 439 324 . 2258 55 457 1360 505 2219 158 50 . 162 19 16 142 1980 . Cannons 80675 | . . . 838 162 1230 467 845 . . 3354 2295 1765 68 463 5799 12 85 . 515 6656 1065 . . . 199 3419 . . 1672 3247 . 6351 40168 Explosions 27984 | . . . . . . 389 473 . . 898 435 277 . 883 4841 . . . 1286 1671 76 . . . 1131 255 . 4257 371 354 3162 7225 . Melee 1760 | . . . . . . . 653 . 417 . . . . . . . . 485 142 63 . . . . . . . . . . . . . Ramming 257 | . 7 15 . 2 11 . . . . . 45 . . 50 30 . . . . . . . . . . . . 11 . . 21 65 . Kinetic 32851 | 127 766 428 . . . 163 1265 . . . . . 975 . . 451 409 . 2773 5954 246 . . . . 2274 . . . . . 252 16768 Thermal 47238 | . . 238 858 162 1230 410 . . . 3270 2295 1306 . 368 4037 . . . . 1038 1276 1360 505 2219 1289 1341 . 4419 1684 1567 3231 13135 . Explosive 9179 | . . . . . . 389 473 . . 898 435 . . . 4235 . . . 1286 1390 . . . . . . . . . . 73 . . Electromagnetic 7465 | . . . . . . . . . . 84 . 736 68 978 2368 . . . . . 76 . . . 199 109 . . 378 2050 . 419 . Impact 690 | . . . . . . . . . . . . . . . . . . 485 142 63 . . . . . . . . . . . . . Slashing . | . . . . . . . . . . . . . . . . . . . . . . . . . . . . . . . . . . Piercing 1070 | . . . . . . . 653 . 417 . . . . . . . . . . . . . . . . . . . . . . . . Entropic 25150 | . . . . . . . . . . . . . . . . . . . . . . . . . . . . . . . . 1750 23400 Highest Corruption 54 | . . . . . . . 5 5 5 . . 54 54 30 10 10 21 21 29 20 20 20 20 5 1 8 8 . 16 22 3 48 . Average Corruption 13 | . . . . . . . 5 5 5 . . 35 42 28 5 10 12 21 21 10 20 20 5 3 1 3 8 . 6 8 2 23 . Corruption Purged 95 | . . . . . . . . . . . . . 26 . . . . . . . . . . . 1 . . . . 20 . 48 . Corruption Blocked 16 | . . . . . . . . . . . . . . . . . . . . . . . . . . . . 16 . . . . . Effects 786 | . . . . . . . 62 1 39 . . 38 52 44 13 57 52 14 75 29 51 48 9 14 1 13 20 . 22 42 8 82 . Message Errors 175 | . . . . . . . 15 . 10 . . 10 11 5 5 14 14 3 13 7 15 17 4 1 . 2 4 . 6 5 4 10 . Matter Fused 180 | . . . . . . . 15 . 13 . . 7 12 13 . 15 12 4 11 5 10 11 2 4 . 6 1 . 10 12 . 17 . Heat Flow Errors 83 | . . . . . . . 13 . 4 . . 2 4 6 1 3 3 3 14 3 3 7 1 1 1 1 3 . 3 5 1 1 . Energy Discharges 80 | . . . . . . . 5 1 5 . . 1 6 3 4 5 10 . 7 2 4 5 . 3 . 1 4 . . 5 1 8 . Parts Rejected 5 | . . . . . . . . . 1 . . . . . . . . . 2 1 . . 1 . . . . . . . . . . Parts Fused 7 | . . . . . . . 3 . . . . . 1 . . . 1 . . . . . . . . . . . . 1 . 1 . Data Loss (minor) 80 | . . . . . . . 5 . 3 . . 3 4 12 . 6 4 . 9 1 6 3 1 . . 2 3 . 1 7 1 9 . Data Loss (major) 41 | . . . . . . . . . 2 . . 2 2 1 . 4 4 3 6 2 1 1 . 2 . . 3 . 2 1 . 5 . Misfires 40 | . . . . . . . 2 . 1 . . 3 4 1 1 6 4 . 6 . 3 . . . . . 1 . . 2 . 6 . Alerts 23 | . . . . . . . 1 . . . . 1 . 1 . 3 . 1 3 1 2 . . 1 . 1 1 . . 2 1 4 . Misdirections 1 | . . . . . . . . . . . . . . 1 . . . . . . . . . . . . . . . . . . . Weapon Failures 71 | . . . . . . . 3 . . . . 9 8 1 2 1 . . 4 7 7 4 . 2 . . . . . 2 . 21 . Overload Shots . | . . . . . . . . . . . . . . . . . . . . . . . . . . . . . . . . . . Overflow Damage 9661 | . . . . . . 26 66 . 183 60 5 17 12 44 345 . . 384 49 465 . . . . 7 268 . 33 111 115 34 213 7224 Projectiles 8383 | . . . . . . 26 . . . 24 5 7 12 8 146 . . 29 3 230 . . . . 7 268 . . 111 115 . 168 7224 Explosions 648 | . . . . . . . 53 . . 36 . 10 . 36 199 . . . 9 196 . . . . . . . 33 . . 34 42 . Melee 630 | . . . . . . . 13 . 183 . . . . . . . . 355 37 39 . . . . . . . . . . . 3 . Knockbacks 100 | . . . . . . . . . . . . . . . . . . 2 3 50 2 . . . . 9 . 1 . . . 1 32 Impact 5 | . . . . . . . . . . . . . . . . . . 2 . 1 . . . . . . . 1 . . . 1 . Kinetic 84 | . . . . . . . . . . . . . . . . . . . 3 41 2 . . . . 6 . . . . . . 32 Secondary 11 | . . . . . . . . . . . . . . . . . . . . 8 . . . . . 3 . . . . . . . Self-Inflicted Damage 1259 | . . . . . . 97 63 . . 27 . . . 192 157 . . . . . . . . . 75 . . . 86 117 126 319 . Shots 45 | . . . . . . 3 2 . . 2 . . . 2 3 . . . . . . . . . 3 . . . 4 5 6 15 . Rammed 24 | . 4 5 . 1 . . . . . . 3 . . 3 3 . . . . . . . . . . . . 2 . . 1 2 . Targets Rammed 25 | . 4 5 . 1 1 . . . . . 3 . . 3 3 . . . . . . . . . . . . 2 . . 1 2 . Kicked . | . . . . . . . . . . . . . . . . . . . . . . . . . . . . . . . . . . Crushed 1 | . . . . . 1 . . . . . . . . . . . . . . . . . . . . . . . . . . . . Highest Temperature 402 | 6 20 238 117 195 198 189 258 . 192 312 192 361 299 402 345 290 212 208 253 282 199 192 162 195 195 279 196 199 192 192 194 390 300 Average Temperature 83 | 6 7 53 34 79 88 88 86 . 82 83 62 94 113 76 77 81 75 85 73 75 93 104 86 113 74 87 60 101 101 100 91 92 62 Received Heat Transfer 4320 | . 195 201 42 36 92 225 141 . . 154 301 9 . 87 704 37 . . 495 564 190 75 23 221 12 148 . 12 28 118 8 198 4 Effects 13 | . . . . . . . . . . 4 . 1 1 3 1 1 . . . . . . . . . . . . . . . . 2 Shutdowns 3 | . . . . . . . . . . . . 1 . 2 . . . . . . . . . . . . . . . . . . . Energy Bleed 4 | . . . . . . . . . . 1 . . 1 . 1 1 . . . . . . . . . . . . . . . . . Interference 6 | . . . . . . . . . . 3 . . . 1 . . . . . . . . . . . . . . . . . . 2 Siege Activations 57 | . . . . . . . . . . . . . . . 10 3 . . 4 4 2 4 . . . 4 . 4 2 4 . 3 13 Total Turns 1051 | . . . . . . . . . . . . . . . 186 26 . . 122 117 25 39 . . . 85 . 18 22 61 . 121 229 Longest Duration 85 | . . . . . . . . . . . . . . . 62 16 . . 85 48 14 14 . . . 40 . 8 17 20 . 83 55 Robots Corrupted 33 | . . . . . . . . . . . . 6 . 1 10 . . . . . . . . . 1 . . . 1 10 . 4 . Combat Hostiles 31 | . . . . . . . . . . . . 6 . . 10 . . . . . . . . . 1 . . . 1 10 . 3 . Parts Fried 92 | . . . . . . . . . . . . 5 . 2 35 1 . 1 . . . . . . 2 2 . . 2 34 . 8 . Impact Corruptions 24 | . . . . . . . . . . . . . . . . . . 16 2 2 . . . . . 2 . 1 . . . 1 . Robots Melted 21 | . . . . . 3 . . . . 1 2 . . 1 4 . . . . . 1 . . . . 1 . 1 2 . 2 3 . Combat Hostiles 17 | . . . . . 2 . . . . 1 2 . . . 3 . . . . . 1 . . . . 1 . 1 1 . 2 3 . Parts Melted 163 | . . . 4 . 9 . . . . 9 1 . . 1 17 . . . 1 . 3 4 7 4 9 2 . 18 6 5 27 36 . Heat Transferred 51498 | . . 814 1135 222 1628 555 . . . 3959 2756 1060 . 444 4492 . . . . 300 592 1813 519 2775 1705 1276 . 6055 1758 1348 4482 11810 . Parts Sabotaged 1 | . . . . . . . . . . . . . . . . . . . . 1 . . . . . . . . . . . . . Parts Stolen 2 | . . . . . . 2 . . . . . . . . . . . . . . . . . . . . . . . . . . . Parts Stripped . | . . . . . . . . . . . . . . . . . . . . . . . . . . . . . . . . . . Power Chain Reactions 9 | . . . . . . . . . . . . 1 . 1 3 . . . . 2 1 . . . . . . . . 1 . . . Missiles Intercepted . | . . . . . . . . . . . . . . . . . . . . . . . . . . . . . . . . . . Alert | -11 -10 -10 -10 -9 -7 -7 -7 -7 -6 -6 -6 -6 -6 -6 -5 -5 -5 -5 -4 -4 -4 -4 -4 -3 -3 -3 -3 -2 -2 -2 -1 -1 -1 ------- Run | Jun Mat Min Sub Rec Fac Low Low Dat Pro Fac Ext Cet Arc Hub Fac Upp Upp Zhi Pro Fac Upp Upp War Pro Res Arm Lab Res Qua Sec Acc Com Ac0 Peak Influence 1889 | 15 238 286 . 186 322 . . . . 550 559 838 483 1645 1889 . . . . 1332 . . . . 428 556 . 423 464 607 529 1078 . Initial 805 | . 9 49 . 151 300 . . . . . 214 277 259 56 805 . . . . 343 . . . . 217 132 . . 196 214 98 109 . Average 356 | 4 115 163 . 43 212 . . . . 235 261 583 338 892 1322 . . . . 769 . . . . 283 280 . 130 289 350 219 740 . Maximum Alert Level 5 | . 1 1 . . 1 . . . . 2 2 3 2 5 5 . . . . 4 . . . . 2 2 . 2 2 2 2 4 . Low Security (%) 23 | 100 84 70 . 100 41 . . . . 45 22 . 7 4 . . . . . . . . . . 7 44 . 74 13 4 47 . . Level 1 22 | . 15 29 . . 58 . . . . 41 65 6 76 3 . . . . . 13 . . . . 83 33 . 21 78 62 39 . . Level 2 7 | . . . . . . . . . . 13 11 82 16 31 . . . . . 30 . . . . 9 21 . 4 7 33 12 . . Level 3 3 | . . . . . . . . . . . . 10 . 21 11 . . . . 27 . . . . . . . . . . . 4 . Level 4 41 | . . . . . . . . . . . . . . 38 67 . . . . 27 . . . . . . . . . . . 93 . Level 5 . | . . . . . . . . . . . . . . . 7 . . . . . . . . . . . . . . . . . . High Security . | . . . . . . . . . . . . . . . 13 . . . . . . . . . . . . . . . . . . Max Security . | . . . . . . . . . . . . . . . . . . . . . . . . . . . . . . . . . . Squads Dispatched 73 | . 4 . . . 2 . . . . 6 1 . . 8 14 . . . 1 9 . . . . 2 4 . . 4 9 2 7 . Investigation 7 | . 3 . . . . . . . . 2 1 . . . . . . . . . . . . . . . . . . 1 . . . Extermination 23 | . . . . . 1 . . . . 1 . . . 1 2 . . . . 1 . . . . 1 4 . . 3 4 2 3 . Reinforcement 26 | . 1 . . . 1 . . . . 3 . . . 6 3 . . . . 4 . . . . 1 . . . 1 4 . 2 . Assault 14 | . . . . . . . . . . . . . . 1 6 . . . 1 4 . . . . . . . . . . . 2 . Garrison 3 | . . . . . . . . . . . . . . . 3 . . . . . . . . . . . . . . . . . . Intercept . | . . . . . . . . . . . . . . . . . . . . . . . . . . . . . . . . . . Searches Triggered 1 | . . . . . . . . . . . . . . . . . . . . 1 . . . . . . . . . . . . . Data Miner Redirects 7 | . . . . . . . . . . 1 1 . . 1 1 . . . . . . . . . . . . . . 1 . 2 . Construction Impeded 3 | . . . . . . . . . . 1 . . . . 1 . . . . 1 . . . . . . . . . . . . . Haulers Reinforced 6 | . . . . . . . . . . . . . . 4 1 . . . . 1 . . . . . . . . . . . . . Active Scanning Responses . | . . . . . . . . . . . . . . . . . . . . . . . . . . . . . . . . . . Cargo Convoy Interrupts 1 | . . . . . . . . . . . . . . . 1 . . . . . . . . . . . . . . . . . . Stealth | -11 -10 -10 -10 -9 -7 -7 -7 -7 -6 -6 -6 -6 -6 -6 -5 -5 -5 -5 -4 -4 -4 -4 -4 -3 -3 -3 -3 -2 -2 -2 -1 -1 -1 --------- Run | Jun Mat Min Sub Rec Fac Low Low Dat Pro Fac Ext Cet Arc Hub Fac Upp Upp Zhi Pro Fac Upp Upp War Pro Res Arm Lab Res Qua Sec Acc Com Ac0 Distress Signals 44 | . . . . . . . . . . 2 1 2 . 3 4 . . . . 3 . . 1 . . 1 . 2 1 1 1 22 . Communications Jammed 217 | . . . . . . . . . . . . . . . . . . . . 40 . . . . . 37 . . 25 83 20 12 . Distress Signals 212 | . . . . . . . . . . . . . . . . . . . . 40 . . . . . 37 . . 25 83 15 12 . Times Spotted 724 | . 20 12 23 2 13 11 8 . 1 38 27 16 24 21 73 7 . . 30 69 10 8 34 14 9 35 . 24 25 35 21 58 56 Peak Tracking Total 12 | . 3 3 6 1 3 4 3 . 3 6 4 5 1 8 12 5 . . 8 12 4 3 9 5 5 9 . 3 4 7 5 8 5 Tactical Retreats 35 | . 3 . 2 . . . . . . 7 . 1 . 1 . 1 . . 1 7 . 2 1 . . . . . 1 2 . 6 . Traps | -11 -10 -10 -10 -9 -7 -7 -7 -7 -6 -6 -6 -6 -6 -6 -5 -5 -5 -5 -4 -4 -4 -4 -4 -3 -3 -3 -3 -2 -2 -2 -1 -1 -1 ------- Run | Jun Mat Min Sub Rec Fac Low Low Dat Pro Fac Ext Cet Arc Hub Fac Upp Upp Zhi Pro Fac Upp Upp War Pro Res Arm Lab Res Qua Sec Acc Com Ac0 Traps Triggered 15 | . 1 . 4 . . . . . . . . . . 1 1 . . . . . 1 . . . . 2 . . . 1 . 4 . Indirectly . | . . . . . . . . . . . . . . . . . . . . . . . . . . . . . . . . . . Trap Hack Attempts . | . . . . . . . . . . . . . . . . . . . . . . . . . . . . . . . . . . Triggered . | . . . . . . . . . . . . . . . . . . . . . . . . . . . . . . . . . . Disarmed . | . . . . . . . . . . . . . . . . . . . . . . . . . . . . . . . . . . Reprogrammed . | . . . . . . . . . . . . . . . . . . . . . . . . . . . . . . . . . . Reused . | . . . . . . . . . . . . . . . . . . . . . . . . . . . . . . . . . . Traps Extracted . | . . . . . . . . . . . . . . . . . . . . . . . . . . . . . . . . . . Installed . | . . . . . . . . . . . . . . . . . . . . . . . . . . . . . . . . . . Triggered 16 | . . . . . . . 1 . . . . . . . . . . . . . . 1 13 . . . . . . . . 1 . Machines | -11 -10 -10 -10 -9 -7 -7 -7 -7 -6 -6 -6 -6 -6 -6 -5 -5 -5 -5 -4 -4 -4 -4 -4 -3 -3 -3 -3 -2 -2 -2 -1 -1 -1 ---------- Run | Jun Mat Min Sub Rec Fac Low Low Dat Pro Fac Ext Cet Arc Hub Fac Upp Upp Zhi Pro Fac Upp Upp War Pro Res Arm Lab Res Qua Sec Acc Com Ac0 Machines Disabled 77 | . . . 1 . . 1 . . . 2 1 . 4 12 13 . . 1 . 8 1 . . 1 . 3 2 . 11 6 3 3 4 Max in Single Turn 5 | . . . 1 . . 1 . . . 1 1 . 1 5 4 . . 1 . 3 1 . . 1 . 1 1 . 1 1 2 1 1 Garrison Access 2 | . . . . . . . . . . . . . . . . . . . . . . . . . . . . 2 . . . . . Network Hub 3 | . . . . . . . . . . . . . . 3 . . . . . . . . . . . . . . . . . . . Machines Repaired . | . . . . . . . . . . . . . . . . . . . . . . . . . . . . . . . . . . Machines Sabotaged . | . . . . . . . . . . . . . . . . . . . . . . . . . . . . . . . . . . Overloaded Fab Kills . | . . . . . . . . . . . . . . . . . . . . . . . . . . . . . . . . . . Hacking | -11 -10 -10 -10 -9 -7 -7 -7 -7 -6 -6 -6 -6 -6 -6 -5 -5 -5 -5 -4 -4 -4 -4 -4 -3 -3 -3 -3 -2 -2 -2 -1 -1 -1 --------- Run | Jun Mat Min Sub Rec Fac Low Low Dat Pro Fac Ext Cet Arc Hub Fac Upp Upp Zhi Pro Fac Upp Upp War Pro Res Arm Lab Res Qua Sec Acc Com Ac0 Machines Accessed 105 | . 8 . 2 12 7 1 1 4 . 10 4 . . 4 4 4 . 4 . 3 1 1 4 . 6 4 1 . 6 4 5 5 . Terminals 59 | . 5 . . 6 5 . . . . 5 4 . . 4 3 1 . . . 1 . . . . 5 3 . . 6 2 4 5 . Fabricators 5 | . . . . . 1 . . . . 2 . . . . . . . . . 1 . . . . . 1 . . . . . . . Repair Stations 3 | . 1 . . . . . . . . 1 . . . . . . . . . 1 . . . . . . . . . . . . . Recycling Units 9 | . 2 . . 6 . . . . . 1 . . . . . . . . . . . . . . . . . . . . . . . Scanalyzers 1 | . . . . . . . . . . . . . . . . . . . . . . . . . . . . . . 1 . . . Garrison Access 6 | . . . . . 1 . . . . 1 . . . . 1 . . . . . . . . . 1 . . . . 1 1 . . Total Hacks 355 | . 25 . 12 20 15 1 1 29 . 22 7 . . 9 13 7 . 17 . 13 1 1 9 . 20 18 1 . 51 16 24 23 . Successful 166 | . 15 . 12 13 3 1 1 29 . 4 1 . . 1 4 7 . 17 . 8 1 1 9 . 5 6 1 . 17 3 3 4 . Failed 189 | . 10 . . 7 12 . . . . 18 6 . . 8 9 . . . . 5 . . . . 15 12 . . 34 13 21 19 . Catastrophic 57 | . 4 . . 1 1 . . . . 5 3 . . 2 4 . . . . . . . . . 3 6 . . 5 8 7 8 . Database Lockouts . | . . . . . . . . . . . . . . . . . . . . . . . . . . . . . . . . . . Manual 90 | . 18 . . 8 2 . . . . 6 2 1 . . 6 . . . . 1 1 . 1 . . 8 . . 25 4 1 6 . Terminals 219 | . 20 . . 13 10 . . . . 13 7 . . 9 12 1 . . . 1 . . . . 17 12 . . 51 10 20 23 . Fabricators 15 | . . . . . 2 . . . . 4 . . . . . . . . . 3 . . . . . 6 . . . . . . . Repair Stations 14 | . 2 . . . . . . . . 3 . . . . . . . . . 9 . . . . . . . . . . . . . Recycling Units 11 | . 3 . . 7 . . . . . 1 . . . . . . . . . . . . . . . . . . . . . . . Scanalyzers 1 | . . . . . . . . . . . . . . . . . . . . . . . . . . . . . . 1 . . . Garrison Access 17 | . . . . . 3 . . . . 1 . . . . 1 . . . . . . . . . 3 . . . . 5 4 . . Terminal Hacks 140 | . 11 . 12 7 3 1 1 29 . 4 1 . . 1 4 7 . 17 . . 1 1 9 . 5 4 1 . 12 3 3 3 . Record 42 | . . . 11 . . . . 11 . . . . . . . 5 . 5 . . . . 8 . . . 1 . 1 . . . . Part Schematic 15 | . 2 . . . . . . 9 . . . . . . . . . 4 . . . . . . . . . . . . . . . Robot Schematic 6 | . . . . . . . . 6 . . . . . . . . . . . . . . . . . . . . . . . . . Robot Analysis 8 | . 3 . . 1 . . . . . . . . . . . . . 4 . . . . . . . . . . . . . . . Prototype ID Bank 8 | . . . . . . . . 3 . . . . . . . . . 4 . . . . . . . . . . 1 . . . . Open Door 8 | . . . . . . 1 1 . . . . . . . . 2 . . . . 1 1 1 . . . . . . . . 1 . Open DSF 1 | . . . . . 1 . . . . . . . . . . . . . . . . . . . . . . . . . . . . Level Access Points 1 | . . . . . . . . . . 1 . . . . . . . . . . . . . . . . . . . . . . . Branch Access Points 2 | . . . . . 1 . . . . . . . . . 1 . . . . . . . . . . . . . . . . . . Terminal Index 3 | . . . . . . . . . . . . . . . . . . . . . . . . . . 1 . . . . 1 1 . Alert Level 2 | . . . . . . . . . . . . . . . . . . . . . . . . . . . . . 2 . . . . Unreport Threat 13 | . . . . 3 . . . . . . . . . . 2 . . . . . . . . . . . . . 3 3 2 . . Locate Traps 7 | . 1 . . . . . . . . 1 . . . . 1 . . . . . . . . . 2 . . . 1 . . 1 . Hauler Manifests 4 | . 1 . . 1 . . . . . . . . . . . . . . . . . . . . . 1 . . 1 . . . . Registered Components 2 | . . . . . . . . . . 1 . . . . . . . . . . . . . . . . . . 1 . . . . Zone Layout 17 | . 4 . . 2 1 . . . . 1 1 . . 1 . . . . . . . . . . 3 2 . . 2 . . . . Derelict Proto ID Bank 1 | . . . 1 . . . . . . . . . . . . . . . . . . . . . . . . . . . . . . Fabricator Hacks 2 | . . . . . . . . . . . . . . . . . . . . 1 . . . . . 1 . . . . . . . Network Status 2 | . . . . . . . . . . . . . . . . . . . . 1 . . . . . 1 . . . . . . . Repair Station Hacks 8 | . 2 . . . . . . . . . . . . . . . . . . 6 . . . . . . . . . . . . . Scan Component 4 | . 1 . . . . . . . . . . . . . . . . . . 3 . . . . . . . . . . . . . Repair 4 | . 1 . . . . . . . . . . . . . . . . . . 3 . . . . . . . . . . . . . Recycling Unit Hacks . | . . . . . . . . . . . . . . . . . . . . . . . . . . . . . . . . . . Scanalyzer . | . . . . . . . . . . . . . . . . . . . . . . . . . . . . . . . . . . Garrison Access Hacks . | . . . . . . . . . . . . . . . . . . . . . . . . . . . . . . . . . . Unauthorized Hacks 16 | . 2 . . 6 . . . . . . . . . . . . . . . 1 . . . . . 1 . . 5 . . 1 . Terminals 6 | . . . . . . . . . . . . . . . . . . . . . . . . . . . . . 5 . . 1 . Track 3 | . . . . . . . . . . . . . . . . . . . . . . . . . . . . . 2 . . 1 . Assimilate 1 | . . . . . . . . . . . . . . . . . . . . . . . . . . . . . 1 . . . . Operators 2 | . . . . . . . . . . . . . . . . . . . . . . . . . . . . . 2 . . . . Fabricators 2 | . . . . . . . . . . . . . . . . . . . . 1 . . . . . 1 . . . . . . . Liberate 1 | . . . . . . . . . . . . . . . . . . . . . . . . . . 1 . . . . . . . Haulers 1 | . . . . . . . . . . . . . . . . . . . . 1 . . . . . . . . . . . . . Repair Stations . | . . . . . . . . . . . . . . . . . . . . . . . . . . . . . . . . . . Recycling Units 8 | . 2 . . 6 . . . . . . . . . . . . . . . . . . . . . . . . . . . . . Tunnel 8 | . 2 . . 6 . . . . . . . . . . . . . . . . . . . . . . . . . . . . . Scanalyzers . | . . . . . . . . . . . . . . . . . . . . . . . . . . . . . . . . . . Garrison Access . | . . . . . . . . . . . . . . . . . . . . . . . . . . . . . . . . . . Data Cores Recovered 2 | . . . . . 1 . . . . . . . . . . . . . . . . . . . . 1 . . . . . . . Used . | . . . . . . . . . . . . . . . . . . . . . . . . . . . . . . . . . . Hacking Detections 70 | . 6 . . 5 7 . . . . 10 4 1 . 4 4 1 . . . 1 . . . . 6 3 . . 5 4 5 4 . Full Trace Events 2 | . . . . . . . . . . 1 . . . . . . . . . . . . . . . . . . . 1 . . . Feedback Events . | . . . . . . . . . . . . . . . . . . . . . . . . . . . . . . . . . . Feedback Blocked . | . . . . . . . . . . . . . . . . . . . . . . . . . . . . . . . . . . Robot Schematics Acquired 6 | . . . . . . . . 6 . . . . . . . . . . . . . . . . . . . . . . . . . Robots Built . | . . . . . . . . . . . . . . . . . . . . . . . . . . . . . . . . . . Authchips . | . . . . . . . . . . . . . . . . . . . . . . . . . . . . . . . . . . Time . | . . . . . . . . . . . . . . . . . . . . . . . . . . . . . . . . . . Total Robot Build Rating . | . . . . . . . . . . . . . . . . . . . . . . . . . . . . . . . . . . Part Schematics Acquired 17 | . 2 . . . . . . 9 . . . . . . . . . 4 . . . . . . . . . . 2 . . . . Parts Built . | . . . . . . . . . . . . . . . . . . . . . . . . . . . . . . . . . . Authchips . | . . . . . . . . . . . . . . . . . . . . . . . . . . . . . . . . . . Time . | . . . . . . . . . . . . . . . . . . . . . . . . . . . . . . . . . . Total Part Build Rating . | . . . . . . . . . . . . . . . . . . . . . . . . . . . . . . . . . . Parts Repaired 4 | . 1 . . . . . . . . . . . . . . . . . . 3 . . . . . . . . . . . . . Time 298 | . 26 . . . . . . . . . . . . . . . . . . 272 . . . . . . . . . . . . . Parts Recycled . | . . . . . . . . . . . . . . . . . . . . . . . . . . . . . . . . . . Recycled Matter . | . . . . . . . . . . . . . . . . . . . . . . . . . . . . . . . . . . Retrieved Matter . | . . . . . . . . . . . . . . . . . . . . . . . . . . . . . . . . . . Retrieved Components . | . . . . . . . . . . . . . . . . . . . . . . . . . . . . . . . . . . Parts Scanalyzed . | . . . . . . . . . . . . . . . . . . . . . . . . . . . . . . . . . . Part Schematics Acquired . | . . . . . . . . . . . . . . . . . . . . . . . . . . . . . . . . . . Parts Damaged . | . . . . . . . . . . . . . . . . . . . . . . . . . . . . . . . . . . Bothacking | -11 -10 -10 -10 -9 -7 -7 -7 -7 -6 -6 -6 -6 -6 -6 -5 -5 -5 -5 -4 -4 -4 -4 -4 -3 -3 -3 -3 -2 -2 -2 -1 -1 -1 ------------ Run | Jun Mat Min Sub Rec Fac Low Low Dat Pro Fac Ext Cet Arc Hub Fac Upp Upp Zhi Pro Fac Upp Upp War Pro Res Arm Lab Res Qua Sec Acc Com Ac0 Used RIF Installer . | . . . . . . . . . . . . . . . . . . . . . . . . . . . . . . . . . . Robots Hacked . | . . . . . . . . . . . . . . . . . . . . . . . . . . . . . . . . . . Non-combat . | . . . . . . . . . . . . . . . . . . . . . . . . . . . . . . . . . . Combat . | . . . . . . . . . . . . . . . . . . . . . . . . . . . . . . . . . . Robot Hacks Applied . | . . . . . . . . . . . . . . . . . . . . . . . . . . . . . . . . . . Relay Couplers Released . | . . . . . . . . . . . . . . . . . . . . . . . . . . . . . . . . . . Fabnet Peak Effective % . | . . . . . . . . . . . . . . . . . . . . . . . . . . . . . . . . . . Robots Rewired 19 | . . . . . . . . . . . 17 . . . . . . . 2 . . . . . . . . . . . . . . Allies Hacked 1 | . . . . . . . . . . . 1 . . . . . . . . . . . . . . . . . . . . . . Hacks Repelled . | . . . . . . . . . . . . . . . . . . . . . . . . . . . . . . . . . . Allies | -11 -10 -10 -10 -9 -7 -7 -7 -7 -6 -6 -6 -6 -6 -6 -5 -5 -5 -5 -4 -4 -4 -4 -4 -3 -3 -3 -3 -2 -2 -2 -1 -1 -1 -------- Run | Jun Mat Min Sub Rec Fac Low Low Dat Pro Fac Ext Cet Arc Hub Fac Upp Upp Zhi Pro Fac Upp Upp War Pro Res Arm Lab Res Qua Sec Acc Com Ac0 Total Allies 38 | . . . . . . . . . 1 . 30 5 . . . . . . 2 . . . . . . . . . . . . . . Largest Group 16 | . . . . . . . . . 1 . 16 14 12 8 . . . . 2 2 . . . . . . . . . . . . . Highest-Rated Group 877 | . . . . . . . . . 96 . 600 877 718 579 . . . . 94 94 . . . . . . . . . . . . . Highest-Rated Ally 159 | . . . . . . . . . 96 . 159 159 96 96 . . . . 47 47 . . . . . . . . . . . . . Total Orders 8 | . . . . . . . . . . . . 7 1 . . . . . . . . . . . . . . . . . . . . STAY 6 | . . . . . . . . . . . . 5 1 . . . . . . . . . . . . . . . . . . . . FOLLOW 2 | . . . . . . . . . . . . 2 . . . . . . . . . . . . . . . . . . . . . Ally Attacks 411 | . . . . . . . . . 11 . 156 66 23 136 . . . . 10 9 . . . . . . . . . . . . . Total Damage 10818 | . . . . . . . . . 366 . 3021 1676 661 4722 . . . . 194 178 . . . . . . . . . . . . . Kills 85 | . . . . . . . . . 4 . 26 10 5 34 . . . . 1 5 . . . . . . . . . . . . . Allies Corrupted . | . . . . . . . . . . . . . . . . . . . . . . . . . . . . . . . . . . Allies Melted 2 | . . . . . . . . . . . . . . . . . . . . . . . . . . . . 2 . . . . . Intel | -11 -10 -10 -10 -9 -7 -7 -7 -7 -6 -6 -6 -6 -6 -6 -5 -5 -5 -5 -4 -4 -4 -4 -4 -3 -3 -3 -3 -2 -2 -2 -1 -1 -1 ------- Run | Jun Mat Min Sub Rec Fac Low Low Dat Pro Fac Ext Cet Arc Hub Fac Upp Upp Zhi Pro Fac Upp Upp War Pro Res Arm Lab Res Qua Sec Acc Com Ac0 Robot Analysis Total 8 | . 3 . . 1 . . . . . . . . . . . . . 4 . . . . . . . . . . . . . . . Derelict Logs Recovered 16 | . . 2 2 . . 1 1 . 2 . . . . . . 2 1 . 2 . 2 1 . . . . . . . . . . . Drone Launches . | . . . . . . . . . . . . . . . . . . . . . . . . . . . . . . . . . . Drone Recoveries . | . . . . . . . . . . . . . . . . . . . . . . . . . . . . . . . . . . Exploration | -11 -10 -10 -10 -9 -7 -7 -7 -7 -6 -6 -6 -6 -6 -6 -5 -5 -5 -5 -4 -4 -4 -4 -4 -3 -3 -3 -3 -2 -2 -2 -1 -1 -1 ------------- Run | Jun Mat Min Sub Rec Fac Low Low Dat Pro Fac Ext Cet Arc Hub Fac Upp Upp Zhi Pro Fac Upp Upp War Pro Res Arm Lab Res Qua Sec Acc Com Ac0 Turns Passed 57485 | 80 1314 467 4281 2290 1629 2269 2789 112 1614 1200 2031 623 863 891 1278 1604 1301 323 1678 948 945 974 1378 701 878 1279 646 2066 1340 1254 877 14363 1199 Spaces Moved 25809 | 32 651 158 2227 665 573 865 1261 78 718 468 683 218 291 327 348 757 575 177 857 335 570 509 877 303 391 498 329 1183 551 550 499 6259 1026 Core . | . . . . . . . . . . . . . . . . . . . . . . . . . . . . . . . . . . Treads 15135 | . 651 158 2227 665 573 865 681 . . 9 683 218 291 327 348 757 575 177 317 15 . . . . . . . 887 551 550 499 2085 1026 Legs 55 | 32 . . . . . . . . . . . . . . . . . . . . . . . . . . . . . . . 23 . Wheels 6468 | . . . . . . . 580 78 718 459 . . . . . . . . 540 320 570 509 877 303 391 498 329 296 . . . . . Hover 3673 | . . . . . . . . . . . . . . . . . . . . . . . . . . . . . . . . 3673 . Flight 474 | . . . . . . . . . . . . . . . . . . . . . . . . . . . . . . . . 474 . Fastest Speed 62 | 120 160 160 160 340 245 250 136 136 210 155 247 160 240 240 160 160 160 160 150 110 110 130 130 170 190 170 130 150 150 150 150 62 62 Average Speed 175 | 120 160 160 178 340 246 250 205 143 215 175 247 186 240 240 224 201 219 160 153 160 144 161 137 175 192 191 140 156 198 150 150 147 62 Slowest Speed 340 | 120 160 160 340 340 250 250 250 210 225 255 247 247 240 240 240 240 240 240 240 240 150 170 190 250 210 210 190 190 233 150 150 320 62 Overloaded Moves . | . . . . . . . . . . . . . . . . . . . . . . . . . . . . . . . . . . Propulsion Burnouts . | . . . . . . . . . . . . . . . . . . . . . . . . . . . . . . . . . . Robots Hopped . | . . . . . . . . . . . . . . . . . . . . . . . . . . . . . . . . . . Cave-ins Triggered . | . . . . . . . . . . . . . . . . . . . . . . . . . . . . . . . . . . Teleports 5 | . . . . . . . . . . . . . . . . . . . . . . . . . . 1 . . 1 1 . 1 1 Spacefolds 2 | . . . . . . . . . . . . . . . . . . . . . . . . . . . . . . . . 2 . Exploration Rate (%) 60 | 4 91 41 88 96 18 82 98 68 94 25 86 56 88 45 16 80 82 60 88 10 79 68 90 51 15 44 93 53 66 39 20 85 53 Regions Visited 33 Branch Regions 25 Pre-discovered Areas 17 | . 2 1 1 6 . . . 1 1 . . . . . . . . 3 1 . . 1 . . . . . . . . . . . Known Exits Taken 9 | . . . . . 1 . . . . 1 . . . 1 1 1 . . . 1 . . . . 1 . 1 . . 1 . . . Unknown Exits Taken 24 | 1 1 1 1 1 . 1 1 1 1 . 1 1 1 . . . 1 1 1 . 1 1 1 1 . 1 . 1 1 . 1 1 . Scrap Searched 37 | . . . 4 . . 3 2 . 5 . . . . . . 3 3 . 5 . 4 4 . 4 . . . . . . . . . Spaces Dug 204 | . . . 10 . 9 2 8 . 5 12 16 . . 11 14 . . . 1 8 . 4 18 4 9 11 . 6 19 19 2 13 3 Terrain Destroyed 1554 | . . 2 17 2 19 42 60 . 5 53 52 17 6 517 124 23 6 . 137 106 10 14 20 27 14 49 1 31 34 46 24 40 56 Melee 25 | . . . . . . . 2 . 5 . . . . . . . . . . . . . 18 . . . . . . . . . . Projectile 585 | . . 2 17 2 19 8 23 . . 30 8 10 6 15 25 23 6 . 62 38 10 14 2 27 14 47 1 8 34 36 2 40 56 AOE 944 | . . . . . . 34 35 . . 23 44 7 . 502 99 . . . 75 68 . . . . . 2 . 23 . 10 22 . . Terrain Rammed . | . . . . . . . . . . . . . . . . . . . . . . . . . . . . . . . . . . Walls Destroyed . | . . . . . . . . . . . . . . . . . . . . . . . . . . . . . . . . . . Machines Disabled . | . . . . . . . . . . . . . . . . . . . . . . . . . . . . . . . . . . Actions | -11 -10 -10 -10 -9 -7 -7 -7 -7 -6 -6 -6 -6 -6 -6 -5 -5 -5 -5 -4 -4 -4 -4 -4 -3 -3 -3 -3 -2 -2 -2 -1 -1 -1 --------- Run | Jun Mat Min Sub Rec Fac Low Low Dat Pro Fac Ext Cet Arc Hub Fac Upp Upp Zhi Pro Fac Upp Upp War Pro Res Arm Lab Res Qua Sec Acc Com Ac0 Total 35331 | 47 828 248 2445 685 712 934 1382 80 773 693 934 353 384 391 610 813 600 207 1105 562 647 604 991 385 490 706 506 1348 719 851 579 11269 1450 Wait 5980 | 2 84 14 55 1 33 16 9 . 16 71 9 28 2 9 55 25 2 . 73 43 10 27 20 23 10 71 144 43 63 155 21 4659 187 Move 25773 | 31 650 157 2226 664 572 864 1260 77 717 467 682 217 290 326 347 756 574 176 856 334 569 508 876 302 390 497 328 1182 550 549 498 6256 1025 Hop . | . . . . . . . . . . . . . . . . . . . . . . . . . . . . . . . . . . Pick Up 323 | . 20 4 33 5 16 11 12 . 9 15 9 15 4 3 18 4 1 2 17 16 11 11 7 3 7 9 4 11 6 7 3 21 9 Fast Attach 252 | 1 2 1 6 . 4 . 1 . 5 9 4 6 7 5 6 3 1 10 15 11 11 7 16 3 8 10 8 25 13 23 8 19 4 Attach 194 | . 1 4 2 . 11 3 9 1 2 4 5 7 2 2 17 3 2 1 15 20 4 6 1 1 14 5 2 8 11 4 4 20 3 Detach 120 | . . . 2 . 2 . . 1 2 . . 1 1 1 5 1 1 2 5 12 3 3 6 . 13 7 4 6 4 10 4 23 1 Swap 303 | . 7 8 13 6 10 6 14 . . 15 12 11 3 10 30 6 5 1 17 21 8 2 6 8 9 26 . 2 2 6 3 25 11 Drop 445 | . 12 2 24 4 15 8 9 1 9 19 12 22 6 7 9 6 2 10 24 14 11 11 27 6 14 24 8 34 17 19 10 37 12 Fire 1632 | 13 48 53 79 4 48 26 54 . . 93 48 46 69 23 120 9 12 . 51 90 20 29 8 39 25 57 8 35 53 78 27 169 198 Melee 58 | . . . . . . . 13 . 13 . . . . . . . . 5 2 1 . . 24 . . . . . . . . . . Ram . | . . . . . . . . . . . . . . . . . . . . . . . . . . . . . . . . . . Kick . | . . . . . . . . . . . . . . . . . . . . . . . . . . . . . . . . . . Crush 25 | . 4 5 . 1 1 . . . . . 3 . . 3 3 . . . . . . . . . . . . 2 . . 1 2 . Escape Stasis 28 | . . . . . . . . . . . . . . 2 . . . . . . . . . . . . . . . . . 26 . Rewire 193 | . . . . . . . 1 . . . 150 . . . . . . . 30 . . . . . . . . . . . . 12 . Trap . | . . . . . . . . . . . . . . . . . . . . . . . . . . . . . . . . . . Miscellaneous 5 | . . . 5 . . . . . . . . . . . . . . . . . . . . . . . . . . . . . . Route ------- -11/Junkyard -10/Materials (discovered 5 exits: *Mat x2 / [*Min x2] / *Sub) -10/Mines (discovered 3 exits: Mat / [*Exi] / *Sub) -10/Subcaves (discovered 3 exits: [*Mat x2] / *Rec) -9/Recycling -7/Factory (discovered 3 exits: *Fac / *Low x2) -7/Lower Caves -7/Lower Caves (discovered 2 exits: *Fac / *Dat) -7/Data Miner -6/Proximity Caves -6/Factory (discovered 7 exits: Fac x4 / [Low] / *Ext x2) -6/Extension (discovered 2 exits: *Fac / *Cet) -6/Cetus (discovered 2 exits: *Fac / [*Arc]) -6/Archives (discovered 3 exits: *Fac / *Hub x2) -6/Hub_04(d) (discovered 2 exits: *Fac x2) -5/Factory (discovered 3 exits: *Fac / *Upp x2) -5/Upper Caves -5/Upper Caves (discovered 2 exits: *Fac / *Zhi) -5/Zhirov -4/Proximity Caves -4/Factory -4/Upper Caves -4/Upper Caves -4/Warlord -3/Proximity Caves -3/Research (discovered 4 exits: Res x3 / *Arm) -3/Armory (discovered 2 exits: Res / *Lab) -3/Lab -2/Research (discovered 4 exits: *Acc x3 / *Qua) -2/Quarantine -2/Section 7 -1/Access -1/Command (discovered 3 exits: [*Sur x2] / [*Ac0]) -1/Access_0 Near Former Tau Ceti IV History --------- Turn | Location | Event 16 | -11/Junkyard | Discovered new exit (range 3) 81 | -11/Junkyard | Entered Materials 314 | -10/Materials | Build established: Mutant 375 | -10/Materials | Discovered new exit (range 5) 548 | -10/Materials | Discovered new exit (range 12) 606 | -10/Materials | Discovered new exit (range 20) 789 | -10/Materials | Discovered new exit (range 4) 800 | -10/Materials | Derelicts attacked the area 845 | -10/Materials | Repaired Lgt. Treads 1146 | -10/Materials | Discovered new exit (range 5) 1395 | -10/Materials | Entered Mines 1459 | -10/Mines | Excavation squad dispatched 1459 | -10/Mines | A large section of the Mines collapsed 1709 | -10/Mines | Excavation squad dispatched 1740 | -10/Mines | Learned location of Storage (-9) 1752 | -10/Mines | A weapon hastily lodged in a ceiling crevice suddenly fell to the ground 1782 | -10/Mines | Identified exit to Materials 1803 | -10/Mines | Deemed a non-threat by the Exiles lab entrance 1804 | -10/Mines | Discovered new exit (range 5) 1831 | -10/Mines | Discovered new exit (range 5) 1862 | -10/Mines | Entered Subcaves 1982 | -10/Subcaves | Core integrity fell below 50% 2040 | -10/Subcaves | Discovered new exit (range 11) 2631 | -10/Subcaves | Build established: Subdweller-Mutant 2924 | -10/Subcaves | Learned 4 Materials zone layouts 2939 | -10/Subcaves | Visited 4L-MR0's lab 2955 | -10/Subcaves | Found Power Bank 3695 | -10/Subcaves | Visited Clippyterm 3700 | -10/Subcaves | Learned location of Extension (-6) 3700 | -10/Subcaves | Learned Factory trap positions 3969 | -10/Subcaves | A swath of the cavern ceiling suddenly collapsed 4252 | -10/Subcaves | Learned Materials terminal intel 4566 | -10/Subcaves | A swath of the cavern ceiling suddenly collapsed 4670 | -10/Subcaves | Shifting Twisted Machinery released Battle Cannon 4812 | -10/Subcaves | Discovered new exit (range 8) 4836 | -10/Subcaves | Shifting Twisted Machinery released Spk. Treads 4839 | -10/Subcaves | Shifting Twisted Machinery released Sub. Beam Cannon 4849 | -10/Subcaves | Shifting Twisted Machinery released Sub. Power Source 5051 | -10/Subcaves | Discovered new exit (range 12) 5636 | -10/Subcaves | Build established: Derelict-Mutant 6143 | -10/Subcaves | Entered Recycling 6150 | -9/Recycling | Found Scrap Engine 6670 | -9/Recycling | Discovered new exit (range 6) 8433 | -9/Recycling | Entered Factory 8433 | -7/Factory | Evolved 6 slots: Propulsion x2, Utility x4 8434 | -7/Factory | Loaded intel: 85 trap records 8505 | -7/Factory | Identified exit to DSF 9272 | -7/Factory | Discovered new exit (range 7) 9333 | -7/Factory | Build established: Mutant 9455 | -7/Factory | Identified exit to Lower Caves 10062 | -7/Factory | Entered Lower Caves 10359 | -7/Lower Caves | Build established: Derelict-Mutant 10695 | -7/Lower Caves | Build established: Mutant 10729 | -7/Lower Caves | Attacked by a delusional Derelict stockpiling parts 11283 | -7/Lower Caves | Discovered new exit (range 11) 12331 | -7/Lower Caves | Entered another Lower Caves area 12403 | -7/Lower Caves | Discovered new exit (range 9) 12774 | -7/Lower Caves | Spotted B-75 Beast 12843 | -7/Lower Caves | Destroyed B-75 Beast 12862 | -7/Lower Caves | Lost 4 parts (1p3n) 13102 | -7/Lower Caves | Build established: Scavenger-Mutant 13601 | -7/Lower Caves | Discovered new exit (range 9) 13831 | -7/Lower Caves | Attracted the attention of an 0b10 checkpoint 14425 | -7/Lower Caves | Build established: Derelict-Mutant 15120 | -7/Lower Caves | Entered Data Miner 15121 | -7/Data Miner | Discovered new exit (range 6) 15147 | -7/Data Miner | Met Data Miner 15171 | -7/Data Miner | Learned location of Section 7 (-2) 15171 | -7/Data Miner | Acquired the access code to Warlord's prototype stash 15194 | -7/Data Miner | Received God Mode back door access code from Data Miner 15232 | -7/Data Miner | Entered Proximity Caves 15513 | -6/Proximity Caves | Received a Behemoth hack from an annoying Tinkerer 15932 | -6/Proximity Caves | Learned location of Zion (-6) 16024 | -6/Proximity Caves | Escorted by Enhanced Grunt 16205 | -6/Proximity Caves | Learned Factory garrison access intel 16245 | -6/Proximity Caves | Found Prototype Device 16245 | -6/Proximity Caves | Identified Exp. Thermal Shield 16715 | -6/Proximity Caves | Discovered new exit (range 13) 16846 | -6/Proximity Caves | Entered Factory 16846 | -6/Factory | Evolved 2 slots: Power x1, Utility x1 16847 | -6/Factory | Identified exit to Extension 16848 | -6/Factory | Loaded intel: 4 garrison access locations 17552 | -6/Factory | Incoming investigation squad redirected 17695 | -6/Factory | Discovered new exit (range 18) 17855 | -6/Factory | Identified exit to Factory 18046 | -6/Factory | Entered Extension 18262 | -6/Extension | Build established: Scavenger-Mutant 18374 | -6/Extension | Rescued a captive Derelict 18374 | -6/Extension | Rescued a captive Derelict 18497 | -6/Extension | Rescued a captive Derelict 18838 | -6/Extension | Rescued a captive Derelict 18839 | -6/Extension | Rescued a captive Derelict 19076 | -6/Extension | Build established: Commander-Mutant 19135 | -6/Extension | Spotted B-75 Beast 19137 | -6/Extension | Allies destroyed B-75 Beast 19159 | -6/Extension | Spotted B-75 Beast 19174 | -6/Extension | Destroyed B-75 Beast 19196 | -6/Extension | Disrupted transfer network 19367 | -6/Extension | Rescued a captive Derelict 19394 | -6/Extension | Rescued a captive Derelict 19395 | -6/Extension | Rescued a captive Derelict 19426 | -6/Extension | Rescued A7 19467 | -6/Extension | Build established: Scavenger-Mutant 19783 | -6/Extension | Rescued a captive Derelict 19784 | -6/Extension | Rescued a captive Derelict 19847 | -6/Extension | Rescued a captive Derelict 19854 | -6/Extension | Incoming investigation squad redirected 19899 | -6/Extension | Rescued a captive Derelict 19998 | -6/Extension | Discovered exit to Factory (range 10) 20001 | -6/Extension | Discovered new exit (range 6) 20077 | -6/Extension | Entered Cetus 20077 | -6/Cetus | Accompanied by 14 allies (A7) 20082 | -6/Cetus | Acquired a Cetus Manufacturing Module code from A7 20092 | -6/Cetus | Spotted Cetus Guard 20092 | -6/Cetus | Spotted Cetus Guard 20097 | -6/Cetus | Spotted Cetus Guard 20097 | -6/Cetus | Spotted Cetus Guard 20101 | -6/Cetus | Destroyed Cetus Guard 20108 | -6/Cetus | Destroyed Cetus Guard 20113 | -6/Cetus | Allies destroyed Cetus Guard 20118 | -6/Cetus | Allies destroyed Cetus Guard 20150 | -6/Cetus | System corruption reached 10% 20225 | -6/Cetus | Started Cetus Manufacturing Module 20244 | -6/Cetus | Discovered new exit (range 15) 20250 | -6/Cetus | Manufactured an Enhanced Grunt 20275 | -6/Cetus | Manufactured an Enhanced Grunt 20300 | -6/Cetus | Manufactured an Enhanced Grunt 20325 | -6/Cetus | Manufactured an Enhanced Grunt 20350 | -6/Cetus | Manufactured an Enhanced Grunt 20405 | -6/Cetus | Spotted Cetus Guard 20405 | -6/Cetus | Spotted Cetus Guard 20409 | -6/Cetus | Destroyed Cetus Guard 20409 | -6/Cetus | Spotted Cetus Guard 20411 | -6/Cetus | Spotted Cetus Guard 20414 | -6/Cetus | Destroyed Cetus Guard 20419 | -6/Cetus | Destroyed Cetus Guard 20424 | -6/Cetus | Destroyed Cetus Guard 20436 | -6/Cetus | Discovered exit to Factory (range 16) 20445 | -6/Cetus | Met Revision 17 20458 | -6/Cetus | Attached Power Bank, gained temporary slots: Power x3 20459 | -6/Cetus | System corruption reached 30% 20547 | -6/Cetus | Build established: Commander-Mutant 20635 | -6/Cetus | Destroyed A7 20638 | -6/Cetus | Extracted ID and sensor layout for unrecognized location from A7's data core 20700 | -6/Cetus | Entered Archives 20700 | -6/Archives | Accompanied by 12 allies 20763 | -6/Archives | Discovered new exit (range 14) 21013 | -6/Archives | Build established: Scavenger-Mutant 21074 | -6/Archives | Discovered exit to Factory (range 16) 21135 | -6/Archives | Discovered new exit (range 15) 21563 | -6/Archives | Entered Hub_04(d) 21563 | -6/Hub_04(d) | Accompanied by 8 allies 21913 | -6/Hub_04(d) | First assault squad dispatched 21977 | -6/Hub_04(d) | Incoming assault squad redirected 22155 | -6/Hub_04(d) | Discovered exit to Factory (range 9) 22229 | -6/Hub_04(d) | Discovered exit to Factory (range 5) 22323 | -6/Hub_04(d) | Spotted B-75 Beast 22445 | -6/Hub_04(d) | Network Hub disabled 22447 | -6/Hub_04(d) | Network Hub disabled 22448 | -6/Hub_04(d) | Network Hub disabled 22451 | -6/Hub_04(d) | Spotted Lightning 22453 | -6/Hub_04(d) | Spotted Lightning 22454 | -6/Hub_04(d) | Entered Factory 22454 | -5/Factory | Evolved 2 slots: Utility x1, Weapon x1 22687 | -5/Factory | Discovered new exit (range 8) 22754 | -5/Factory | First assault squad dispatched 22841 | -5/Factory | Destroyed 8 combat bots 22997 | -5/Factory | Garrison activated, responded to threat 23376 | -5/Factory | Incoming assault squad redirected 23422 | -5/Factory | Destroyed 16 combat bots 23486 | -5/Factory | Identified exit to Upper Caves 23546 | -5/Factory | Cargo convoy interrupted 23559 | -5/Factory | High security lockdown imminent 23568 | -5/Factory | System corruption reached 10% 23592 | -5/Factory | Lost 3 parts (1p1n1w) 23595 | -5/Factory | Destroyed 16 combat bots 23612 | -5/Factory | Found Prototype Processor 23615 | -5/Factory | Found Prototype Launcher 23617 | -5/Factory | Identified Gui. Micro-nuke Launcher 23618 | -5/Factory | Identified Exp. Signal Interpreter 23624 | -5/Factory | Found Gui. Micro-nuke Launcher 23639 | -5/Factory | High security lockdown engaged 23732 | -5/Factory | Entered Upper Caves 24063 | -5/Upper Caves | Build established: Scavenger-Tank 24267 | -5/Upper Caves | Learned 4 Factory zone layouts 24537 | -5/Upper Caves | Learned Extension security intel 24537 | -5/Upper Caves | Learned Research security intel 24952 | -5/Upper Caves | Learned location of 1 exit from Factory 24961 | -5/Upper Caves | Discovered new exit (range 7) 25002 | -5/Upper Caves | Identified exit to Upper Caves 25336 | -5/Upper Caves | Entered another Upper Caves area 25490 | -5/Upper Caves | Spotted B-75 Beast 25815 | -5/Upper Caves | Build established: Scavenger-Mutant 25868 | -5/Upper Caves | Discovered new exit (range 9) 26430 | -5/Upper Caves | Discovered new exit (range 9) 26468 | -5/Upper Caves | Build established: Scavenger-Gunner 26511 | -5/Upper Caves | Learned Factory emergency access door positions 26637 | -5/Upper Caves | Entered Zhirov 26637 | -5/Zhirov | Discovered new exit (range 3) 26669 | -5/Zhirov | Met Zhirov 26698 | -5/Zhirov | Learned location of Quarantine (-2) 26714 | -5/Zhirov | Zhirov requested help retrieving the SGEMP Prototype 26739 | -5/Zhirov | Found Alien Artifact 26739 | -5/Zhirov | Identified Integrated Dissipator 26739 | -5/Zhirov | Installed Integrated Dissipator, increased core heat dissipation (+20) 26888 | -5/Zhirov | Found Alien Artifact 26942 | -5/Zhirov | Build established: Scavenger-Mutant 26960 | -5/Zhirov | Entered Proximity Caves 27033 | -4/Proximity Caves | Learned Research terminal intel 27149 | -4/Proximity Caves | Spotter reported a threat 27247 | -4/Proximity Caves | Build established: Scavenger-Gunner 27355 | -4/Proximity Caves | Spotter reported a threat 27394 | -4/Proximity Caves | Unaware initiated a cargo recovery operation 27628 | -4/Proximity Caves | Found Prototype Device 27628 | -4/Proximity Caves | Identified Exp. Actuator Array 27670 | -4/Proximity Caves | Found Prototype Hackware 27814 | -4/Proximity Caves | Attracted the attention of an 0b10 outpost 27916 | -4/Proximity Caves | Lost 3 parts (1u2w) 27923 | -4/Proximity Caves | Destroyed 9 combat bots 28125 | -4/Proximity Caves | Build established: Gunner 28191 | -4/Proximity Caves | Discovered new exit (range 16) 28476 | -4/Proximity Caves | Build established: Scavenger-Gunner 28638 | -4/Proximity Caves | Entered Factory 28638 | -4/Factory | Accompanied by 2 allies 28638 | -4/Factory | Evolved 2 slots: Power x1, Utility x1 28639 | -4/Factory | Identified exit to Upper Caves 28828 | -4/Factory | Identified Exp. Hacking Suite 28888 | -4/Factory | Search patrols dispatched 28937 | -4/Factory | Repaired Centrium Medium Armor Plating? 29007 | -4/Factory | Repaired Adv. Shield Generator 29092 | -4/Factory | Destroyed 9 combat bots 29120 | -4/Factory | Repaired Centrium Medium Armor Plating 29173 | -4/Factory | First assault squad dispatched 29273 | -4/Factory | System corruption reached 10% 29336 | -4/Factory | Lost 6 parts (1p4u1w) 29398 | -4/Factory | Destroyed 12 combat bots 29586 | -4/Factory | Entered Upper Caves 29588 | -4/Upper Caves | Attracted the attention of an 0b10 checkpoint 29636 | -4/Upper Caves | Learned 4 Research zone layouts 30075 | -4/Upper Caves | Acquired the password to a Derelict Tinkerer's latest research 30091 | -4/Upper Caves | Found Prototype Special Weapon 30136 | -4/Upper Caves | Learned location of 2 exits from Research 30357 | -4/Upper Caves | Discovered new exit (range 11) 30434 | -4/Upper Caves | Caught by Unaware searching for contraband prototypes 30443 | -4/Upper Caves | Attracted the attention of an 0b10 outpost 30531 | -4/Upper Caves | Entered another Upper Caves area 30758 | -4/Upper Caves | Attracted the attention of an 0b10 checkpoint 31013 | -4/Upper Caves | Build established: Scavenger-Tank 31073 | -4/Upper Caves | Found Alien Artifact 31073 | -4/Upper Caves | Identified Core Expander 31073 | -4/Upper Caves | Installed Core Expander, added new Utility slot 31466 | -4/Upper Caves | Discovered new exit (range 12) 31505 | -4/Upper Caves | Entered Warlord 31551 | -4/Warlord | System corruption cleaned by Quarantine Array 31786 | -4/Warlord | Found Prototype Energy Gun 31842 | -4/Warlord | Build established: Derelict-Mutant 32258 | -4/Warlord | Warlord's base attacked by MAIN.C 32326 | -4/Warlord | Learned Armory stockpile data 32328 | -4/Warlord | Learned 4 Armory zone layouts 32328 | -4/Warlord | Learned 4 Research zone layouts 32328 | -4/Warlord | Learned 4 Command zone layouts 32329 | -4/Warlord | Learned Factory terminal intel 32329 | -4/Warlord | Learned Research recycling unit intel 32337 | -4/Warlord | Met Warlord 32354 | -4/Warlord | Opened Warlord's prototype stash 32359 | -4/Warlord | Found Prototype Reactor 32359 | -4/Warlord | Identified Vortex Chain Reactor 32366 | -4/Warlord | Found Prototype Device 32366 | -4/Warlord | Identified Exp. Cloaking Device 32380 | -4/Warlord | Found Prototype Device 32380 | -4/Warlord | Identified System Purifier 32383 | -4/Warlord | Found Prototype Processor 32383 | -4/Warlord | Identified Exp. Core Analyzer 32562 | -4/Warlord | Found Prototype Energy Gun 32562 | -4/Warlord | Identified Vortex Shotgun 32572 | -4/Warlord | Found Vortex Shotgun 32608 | -4/Warlord | Warlord forces counterattacked 32645 | -4/Warlord | Spotted Striker 32649 | -4/Warlord | Spotted Striker 32697 | -4/Warlord | Spotted Striker 32703 | -4/Warlord | Destroyed Striker 32765 | -4/Warlord | Spotted Striker 32787 | -4/Warlord | Spotted Executioner 32845 | -4/Warlord | Destroyed Executioner 32867 | -4/Warlord | Discovered new exit (range 9) 32883 | -4/Warlord | Entered Proximity Caves 33117 | -3/Proximity Caves | Found Alien Artifact 33308 | -3/Proximity Caves | Spotter reported a threat 33553 | -3/Proximity Caves | Discovered new exit (range 13) 33558 | -3/Proximity Caves | Build established: Scavenger-Gunner 33584 | -3/Proximity Caves | Entered Research 33584 | -3/Research | Evolved 2 slots: Weapon x2 33585 | -3/Research | Identified exit to Armory 33586 | -3/Research | Identified exit to Research 33587 | -3/Research | Identified Plasma Storm 33589 | -3/Research | Loaded intel: 24 terminal locations 33590 | -3/Research | Loaded intel: 4 recycling unit locations 34462 | -3/Research | Entered Armory 34918 | -3/Armory | Identified Transdimensional Reconstructor 34918 | -3/Armory | Warped through subspace to slip node 34918 | -3/Armory | Discovered new exit (range 1) 34942 | -3/Armory | Found Gamma Bomb Array 35741 | -3/Armory | Entered Lab 35741 | -3/Lab | Discovered exit to Research (range 10) 35765 | -3/Lab | Hidden lab's door opened automatically 35765 | -3/Lab | Sensor layout match revealed 35766 | -3/Lab | Gained access to the hidden lab's interior 35880 | -3/Lab | Build established: Infiltrator-Mutant 35959 | -3/Lab | Found Alien Artifact 35959 | -3/Lab | Identified Integrated Mediator 35959 | -3/Lab | Installed Integrated Mediator, increased core attachment efficiency. 35969 | -3/Lab | Found Alien Artifact 35969 | -3/Lab | Identified Core Regenerator 35969 | -3/Lab | Used Core Regenerator, restored core integrity (+243) 35978 | -3/Lab | Found Transdimensional Reconstructor 36063 | -3/Lab | Found Prototype Energy Gun 36063 | -3/Lab | Identified Tachyon Dispersion Ray 36067 | -3/Lab | Found Prototype Energy Cannon 36067 | -3/Lab | Identified Warp Cannon 36071 | -3/Lab | Found Prototype Protection 36071 | -3/Lab | Identified Med. Regenerative Plating 36076 | -3/Lab | Found Prototype Hackware 36320 | -3/Lab | Found Alien Artifact 36329 | -3/Lab | Unable to decrypt terminal 36387 | -3/Lab | Entered Research 36387 | -2/Research | Warlord forces began assault on 0b10 36387 | -2/Research | Evolved 2 slots: Propulsion x2 36388 | -2/Research | Identified exit to Access 36497 | -2/Research | Research machine network offline 36651 | -2/Research | Build established: Infiltrator-Gunner 36774 | -2/Research | Borebot progress halted 36813 | -2/Research | Met up with Warlord 36950 | -2/Research | Spotted B-90 Cyclops 36985 | -2/Research | Borebot progress halted 37040 | -2/Research | Discovered exit to Access (range 15) 37088 | -2/Research | Borebot progress halted 37295 | -2/Research | Discovered exit to Access (range 4) 37494 | -2/Research | Spotted Striker 37614 | -2/Research | Spotted Striker 37628 | -2/Research | Destroyed Striker 37803 | -2/Research | Found Prototype Processor 37897 | -2/Research | Spotted B-90 Cyclops 38077 | -2/Research | Identified Exp. Melee Analysis Suite 38082 | -2/Research | Found Prototype Device 38082 | -2/Research | Identified Exp. ECM Suite 38198 | -2/Research | Spotted Striker 38202 | -2/Research | Destroyed Striker 38274 | -2/Research | Discovered new exit (range 11) 38287 | -2/Research | Spotted Striker 38289 | -2/Research | Destroyed Striker 38362 | -2/Research | Found Prototype Processor 38362 | -2/Research | Identified Spectral Analyzer 38453 | -2/Research | Entered Quarantine 38453 | -2/Quarantine | Identified Core Reset Matrix 38453 | -2/Quarantine | Used Core Reset Matrix 38457 | -2/Quarantine | Detected hypermatrix surge 38457 | -2/Quarantine | Sensed 13 artifacts in vicinity 38470 | -2/Quarantine | Found Subatomic Replicator 38514 | -2/Quarantine | Found Hpw. Transdimensional Reconstructor 38518 | -2/Quarantine | Found Hpw. Transdimensional Reconstructor 38520 | -2/Quarantine | Found Hpw. Transdimensional Reconstructor 38633 | -2/Quarantine | Spotted Alpha 7 38642 | -2/Quarantine | Destroyed Alpha 7 39491 | -2/Quarantine | Warped through subspace 39585 | -2/Quarantine | System corruption reached 10% 39682 | -2/Quarantine | Spotted Fortress 39786 | -2/Quarantine | Discovered new exit (range 5) 39793 | -2/Quarantine | Entered Section 7 39794 | -2/Section 7 | Sensed 22 artifacts in vicinity 39830 | -2/Section 7 | Found Integrated Reactor 39830 | -2/Section 7 | Installed Integrated Reactor, increased core energy generation (+10) 39874 | -2/Section 7 | Spotted S7 Guard 39901 | -2/Section 7 | Destroyed S7 Guard 39930 | -2/Section 7 | Found Core Regenerator 39930 | -2/Section 7 | Used Core Regenerator, restored core integrity (+213) 39972 | -2/Section 7 | Found Prototype Processor 39972 | -2/Section 7 | Identified Spectral Analyzer 40325 | -2/Section 7 | Warped through subspace 40515 | -2/Section 7 | Used Subatomic Replicator to replicate Integrity Redistributor 40517 | -2/Section 7 | Found Integrity Redistributor 40517 | -2/Section 7 | Used Integrity Redistributor, redistributed integrity from core (-256) 40679 | -2/Section 7 | Found Spacefold Activator 40794 | -2/Section 7 | Spotted S7 Guard 40817 | -2/Section 7 | Destroyed S7 Guard 40828 | -2/Section 7 | Found Corrupted Prototype Protection 40828 | -2/Section 7 | Identified Hvy. Regenerative Plating 40834 | -2/Section 7 | Found Core Physics Calibrator 40907 | -2/Section 7 | Build established: Alien-Mutant 40980 | -2/Section 7 | Incoming investigation squad redirected 41030 | -2/Section 7 | Discovered exit to Access (range 7) 41047 | -2/Section 7 | Entered Access 41047 | -1/Access | Evolved 2 slots: Power x1, Utility x1 41152 | -1/Access | Identified Quantum Router 41254 | -1/Access | Destroyed 9 combat bots 41354 | -1/Access | Build established: Generator-Gunner 41793 | -1/Access | Found Unknown Device 41793 | -1/Access | Identified Quantum Capacitor 41912 | -1/Access | Discovered new exit (range 8) 41924 | -1/Access | Entered Command 42149 | -1/Command | Destroyed 8 combat bots 42166 | -1/Command | Spotted B-99 Colossus 42217 | -1/Command | First assault squad dispatched 42242 | -1/Command | Incoming assault squad redirected 42411 | -1/Command | Destroyed B-99 Colossus 42480 | -1/Command | Incoming assault squad redirected 42520 | -1/Command | Spotted M Guard 42520 | -1/Command | Spotted Combat Programmer 42520 | -1/Command | Spotted Combat Programmer 42522 | -1/Command | Spotted M Guard 42530 | -1/Command | System corruption reached 10% 42530 | -1/Command | Destroyed Combat Programmer 42530 | -1/Command | Destroyed Combat Programmer 42544 | -1/Command | Destroyed M Guard 42553 | -1/Command | Destroyed M Guard 42553 | -1/Command | All MAIN.C guards destroyed 42579 | -1/Command | Found Corrupted Prototype Reactor 42579 | -1/Command | Identified Zero-point Reactor 42597 | -1/Command | Found Corrupted Zero-point Reactor 42605 | -1/Command | Found Corrupted Prototype Device 42605 | -1/Command | Identified Thermal Barrier 42606 | -1/Command | System corruption reached 30% 42608 | -1/Command | Found Corrupted Prototype Device 42608 | -1/Command | Identified AEGIS Remote Shield 42612 | -1/Command | Found Corrupted AEGIS Remote Shield 42616 | -1/Command | Found Corrupted Hvy. Regenerative Plating 42766 | -1/Command | Met MAIN.C 42815 | -1/Command | 0b10 Conduit disabled 42829 | -1/Command | Destroyed MAIN.C Shell 42832 | -1/Command | MAIN.C activated Command garrisons 42865 | -1/Command | Destroyed MAIN.C 42902 | -1/Command | Discovered new exit (range 30) 42902 | -1/Command | Discovered new exit (range 88) 42902 | -1/Command | Extracted map data and part IDs from MAIN.C's data core 43104 | -1/Command | Found Exp. System Purifier 43392 | -1/Command | Build established: Generator-Mutant 43531 | -1/Command | Found Adv. Particle Accelerator 43858 | -1/Command | Found Adv. Particle Accelerator 44221 | -1/Command | Build established: Generator-Gunner 45094 | -1/Command | Build established: Generator-Mutant 46319 | -1/Command | Build established: Alien-Gunner 46870 | -1/Command | Build established: Alien-Mutant 47440 | -1/Command | Build established: Generator-Gunner 48257 | -1/Command | Build established: Alien-Gunner 48889 | -1/Command | Build established: Alien-Mutant 49269 | -1/Command | Build established: Alien-Construct 50029 | -1/Command | Build established: Generator-Construct 53673 | -1/Command | Found Adv. Kinecellerator 55714 | -1/Command | Found Zero-point Reactor 55820 | -1/Command | Found Adv. Kinecellerator 55991 | -1/Command | Found Exp. Core Analyzer 56280 | -1/Command | Warped through subspace to slip node 56280 | -1/Command | Discovered new exit (range 4) 56287 | -1/Command | Entered Access_0 56288 | -1/Access_0 | Sensed 4 artifacts in vicinity 56289 | -1/Access_0 | Met Architect 56292 | -1/Access_0 | Destroyed A8 56299 | -1/Access_0 | Architect warped through subspace 56345 | -1/Access_0 | Architect warped through subspace 56401 | -1/Access_0 | Architect warped through subspace 56457 | -1/Access_0 | Architect warped through subspace 56513 | -1/Access_0 | Architect warped through subspace 56525 | -1/Access_0 | A6 warped into view 56533 | -1/Access_0 | Destroyed A6 56561 | -1/Access_0 | Architect warped through subspace 56598 | -1/Access_0 | Architect warped through subspace 56603 | -1/Access_0 | Found Exp. Weapon Cycler 56630 | -1/Access_0 | Used Integrity Redistributor, redistributed integrity from core (-235) 56633 | -1/Access_0 | Subspace Access Node disabled 56642 | -1/Access_0 | Architect warped through subspace 56668 | -1/Access_0 | Found Exp. Weapon Cycler 56669 | -1/Access_0 | Found Exp. Targeting Computer 56672 | -1/Access_0 | Found Exp. Targeting Computer 56700 | -1/Access_0 | Architect warped through subspace 56737 | -1/Access_0 | A5 warped into view 56738 | -1/Access_0 | Destroyed A5 56740 | -1/Access_0 | Architect warped through subspace 56772 | -1/Access_0 | Architect warped through subspace 56786 | -1/Access_0 | Subspace Access Node disabled 56847 | -1/Access_0 | Core integrity fell below 50% 56860 | -1/Access_0 | Architect warped through subspace 56876 | -1/Access_0 | Found Exp. Targeting Computer 56948 | -1/Access_0 | Architect warped through subspace 57091 | -1/Access_0 | Architect warped through subspace 57151 | -1/Access_0 | Architect warped through subspace 57184 | -1/Access_0 | Subspace Access Node disabled 57200 | -1/Access_0 | Architect warped through subspace 57252 | -1/Access_0 | Architect warped through subspace 57293 | -1/Access_0 | Architect warped through subspace 57303 | -1/Access_0 | A4 warped into view 57310 | -1/Access_0 | Destroyed A4 57335 | -1/Access_0 | Architect warped through subspace 57382 | -1/Access_0 | Architect warped through subspace 57427 | -1/Access_0 | Architect warped through subspace 57447 | -1/Access_0 | Subspace Access Node disabled 57477 | -1/Access_0 | Destroyed Architect 57478 | -1/Access_0 | Architect triggered a singularity event 57481 | -1/Access_0 | Found Hpw. Transdimensional Reconstructor 57481 | -1/Access_0 | Warped through subspace to slip node 57481 | -1/Access_0 | Discovered new exit (range 8) 57486 | *** | Escaped singularity! Last Messages --------------- 57470_ Penetrated by Quantum Shear. 57471_ Destroyed Modified Sigix Sheargun. 57472_ Architect regenerates Exp. Propulsion Shielding. 57475_ Penetrated by Quantum Shear. 57476_ Ended siege mode. 57477_ Architect: "If I can't win, no one wins!" 57477_ Architect destroyed. 57478_ A0_COM: Initiating irreversible singularity event. Goodbye. 57479_ A0_COM: 10. 57480_ A0_COM: 9. 57481_ A0_COM: 8. 57481_ Dropped Exp. Cooling System. 57481_ Acquired Hpw. Transdimensional Reconstructor. 57481_ Warped through subspace, drawn to slip node. 57481_ EXIT=FOUND 57482_ A0_COM: 7. 57483_ A0_COM: 6. 57484_ A0_COM: 5. 57485_ A0_COM: 4. 57486_ A0_COM: 3. Map ----- +----------------------------------------------------+ | | | | | | | | | | | | | | | | | | | | | | | | | | | | | | | | | ?????????????????????????????????????????????????? | | ?????????????????????????????????????????????????? | | ?????????????????????????????????????????????????? | | ?????????????????????????????????????????????????? | | ?????????????????????????????????????????????????? | | ?????????????????????????????????????????????????? | | ????????????????????????###??????????????????????? | | ???????????????????????## ##?????????????????????? | | ???????????????????????# #?????????????????????? | | ???????????????????????# @ #?????????????????????? | | ??????????????????????## #?????????????????????? | | ??????????????????????# #?????????????????????? | | ??????????????????????# ##?????????????????????? | | ??????????????????????## #?????????????????????? | | ??????????????????????# #?????????????????????? | | ??????????????????????# ##?????????????????????? | | ??????????????????????# < #?????????????????????? | | ??????????????????????# ##?????????????????????? | | ??????????????????????## #??????????????????????? | | ???????????????????????####??????????????????????? | | ?????????????????????????????????????????????????? | | ?????????????????????????????????????????????????? | | ?????????????????????????????????????????????????? | | ?????????????????????????????????????????????????? | | ?????????????????????????????????????????????????? | | ?????????????????????????????????????????????????? | | ?????????????????????????????????????????????????? | | ?????????????????????????????????????????????????? | | ?????????????????????????????????????????????????? | | ?????????????????????????????????????????????????? | | ?????????????????????????????????????????????????? | | ?????????????????????????????????????????????????? | | ?????????????????????????????????????????????????? | | ?????????????????????????????????????????????????? | +----------------------------------------------------+ Best States ------------- Heat Dissipation 186 Coolant Potential 220 Energy Generation 154 Energy Capacity 2400 Matter Stores 300 Matter Capacity 800 Sight Range 16 Terrain Scan Range 14 Terrain Scan Density 10 Jamming Range 16 Cloak Strength 4 EM Shielding 2 Armor Coverage 1650 Resistance: TH 30 Core Shielding 20 Utility Shielding 90 Weapon Shielding 90 Weapon Cycling 30 Phase Shifting 15 Evasion (%) 62 Targeting Accuracy 36 Target Analysis 12 Core Analysis 8 Recoil Reduction 6 Particle Charging 75 Kinecelleration 50 Offensive Hacking 16 Defensive Hacking 25 Authchip Count 3 Item Schematics ----------------- Adv. Thermal Defense Suite | -2/Quarantine | Archive Adv. Gravity Neutralizer | -2/Quarantine | Archive Robot Schematics ------------------ None Fabricated ------------ Nothing Alien Tech Used ----------------- Integrated Dissipator Core Expander Transdimensional Reconstructor Integrated Mediator Core Regenerator Core Reset Matrix High-powered Transdimensional Reconstructor Integrated Reactor Subatomic Replicator Integrity Redistributor Spacefold Activator Achievements -------------- None Challenges ------------ None Game ------ Seed ShadingBurstBroadsword Manual? 0 Play Time 10:08:33 Cumulative 1405.1 hours Start 2023.07.20 @ 19:17:09 End 2023.07.21 @ 22:57:52 Sessions 5 Manual Loads 0 Difficulty Rogue Special Mode None Game No. 405 Rogue 405 Adventurer 0 Explorer 0 Win Type 6 Total 82 Types 13/18/16/3/1/2/25/2/2 Lore% 94 Gallery% 96 Achievement% 88 Wizard Run 0 Options --------- ASCII 0 Keyboard 0 Movement Numpad Keybinds 0 Fullscreen 2 Font 24/Smallcaps Map View 76x50 Tactical HUD 1 Map Filters NONE Filters NONE Steam 1 RUN: d5e4af14-69cb-4588-bf8f-a82f516d86cf